Cogmind - Beta 16 @@@ ROGUE MODE // 2025.11.02 @ 10:50:53 Player: shapeshifter Result: Destroyed by P-80 Master with Gamma Rifle Performance ------------- Evolutions (9) 4500 Regions Visited (38) 7600 Robots Destroyed (432) 2160 Value Destroyed (20858) 20858 Prototype IDs (65) 1300 Alien Tech Used (4) 800 Bonus (20341) 20341 TOTAL SCORE: 57559 Bonus ------- High Alert Combat Kills 2382 Follower Combat Kills 7616 Entered Garrisons 2200 Used RIF Installer 6500 Network Hubs Disabled 400 Aligned with FarCom 300 Built Enhanced Grunts 300 A7 Reached Mainframe 300 Met R17 at Cetus 500 Met R17 at Research 2000 Met Sigix 2000 Friendly Fire -4157 Cogmind --------- Core Integrity 0/1600 Matter 25/300 Energy 98/100 System Corruption 1% Temperature Cool (0) Movement Core (50) Location -1/Access Parts ------- > --- POWER (2) -------- (None) > --- PROPULSION (8) --- (None) > --- UTILITY (11) ----- Advanced Signal Interpreter > --- WEAPON (4) ------- (None) > --- INVENTORY (5) ---- Micro Antimatter Reactor Subatomic Replicator Sigix Containment Pod Peak State ------------ > --- POWER ------------ Light Antimatter Reactor > --- PROPULSION ------- Nuclear Pulse Array Electron Diverter Impulse Thruster Array Impulse Thruster Array Cooled Q-thruster > --- UTILITY ---------- Structural Scanner Advanced Sensor Array Advanced Signal Interpreter Advanced Melee Analysis Suite Reaction Control System Cloaking Device Hacking Suite Improved Hacking Suite Improved Hacking Suite Relay Coupler [NC] Relay Coupler [Grunt] > --- WEAPON ----------- Micro-nuke Launcher Advanced Remote Datajack Enhanced Force Lance Enhanced Force Lance > --- INVENTORY -------- Transdimensional Reconstructor High-powered Transdimensional Reconstructor Subatomic Replicator Sigix Containment Pod [Rating: 148] Favorites ----------- Power Quantum Reactor Engine Improved Ion Engine Power Core Nuclear Core Reactor Quantum Reactor Propulsion Improved Heavy Treads Treads Improved Heavy Treads Leg Myomer Leg Hover Unit Combat Antigrav System Flight Unit Impulse Thruster Array Utility Relay Coupler [NC] Device Advanced Heat Sink Storage Huge Storage Unit Processor Core Analyzer Hackware Relay Coupler [NC] Protection Medium Armor Plating Artifact Phase Redirector Weapon Improved Remote Datajack Energy Gun Enhanced Quantum Rifle Energy Cannon Enhanced Nova Cannon Ballistic Gun Advanced KE Penetrator Ballistic Cannon Heavy Mass Driver Launcher Mini Smartbomb Launcher Special Weapon Improved Remote Datajack Piercing Weapon Enhanced Force Lance Build | -11 -10 -10 -9 -9 -9 -8 -8 -8 -8 -8 -7 -7 -7 -7 -7 -7 -6 -6 -6 -6 -6 -6 -6 -6 -5 -5 -5 -5 -5 -5 -5 -5 -4 -4 -3 -2 -2 -1 ------- Run | Yrd Mat Min Mat Min Exi Min Mat Gar Mat Gar Fac Was Fac Gar Fac Gar Fac Gar Fac Ext Cet Arc Hub Gar Fac Gar Fac Gar Fac Gar Fac Gar Fac Gar Res Res Qua Acc Slots Evolved 18 | . . . 2 . . . 2 . . . 2 . . . . . 2 . . . . . . . 2 . . . . . . . 2 . 2 2 . 2 Power 1 | . . . . . . . . . . . . . . . . . . . . . . . . . . . . . . . . . 1 . . . . . Propulsion 6 | . . . . . . . . . . . . . . . . . 2 . . . . . . . . . . . . . . . . . 2 2 . . Utility 9 | . . . 2 . . . . . . . 2 . . . . . . . . . . . . . 2 . . . . . . . 1 . . . . 2 Weapon 2 | . . . . . . . 2 . . . . . . . . . . . . . . . . . . . . . . . . . . . . . . . Parts Attached 352 | 7 4 . 27 . 13 1 19 3 7 9 9 7 . 5 2 7 7 14 8 4 12 6 5 13 19 23 2 8 2 12 7 4 1 3 57 15 2 8 Power 40 | 1 1 . 2 . . 1 2 . 1 1 1 1 . . . . . . 1 . 1 1 1 2 2 1 . 2 . . . . 1 2 12 1 . 2 Engine 10 | 1 1 . 2 . . 1 1 . . . 1 . . . . . . . 1 . . . 1 1 . . . . . . . . . . . . . . Core 9 | . . . . . . . 1 . 1 1 . . . . . . . . . . . . . . 2 . . . . . . . . 1 3 . . . Reactor 21 | . . . . . . . . . . . . 1 . . . . . . . . 1 1 . 1 . 1 . 2 . . . . 1 1 9 1 . 2 Propulsion 64 | 2 1 . 5 . 5 . 1 . 1 1 1 1 . 1 . 2 1 . 1 1 2 . . 4 2 2 . 1 . 1 2 . . . 21 2 . 3 Treads 37 | 2 1 . 5 . 4 . 1 . 1 1 1 1 . 1 . 2 1 . 1 1 2 . . 4 . 2 . 1 . 1 2 . . . 2 . . . Leg 11 | . . . . . 1 . . . . . . . . . . . . . . . . . . . 1 . . . . . . . . . 9 . . . Wheel . | . . . . . . . . . . . . . . . . . . . . . . . . . . . . . . . . . . . . . . . Hover 4 | . . . . . . . . . . . . . . . . . . . . . . . . . . . . . . . . . . . 4 . . . Flight 12 | . . . . . . . . . . . . . . . . . . . . . . . . . 1 . . . . . . . . . 6 2 . 3 Utility 142 | 2 2 . 13 . 4 . 6 1 1 3 5 2 . 4 . . 4 9 2 . 3 4 4 4 9 10 1 1 1 10 3 4 . . 18 8 2 2 Device 43 | 1 1 . 2 . 1 . . 1 . . 1 . . 3 . . 1 2 . . . 3 1 1 4 1 . 1 1 4 . 1 . . 9 2 1 1 Storage 12 | 1 1 . 2 . . . . . . . . . . 1 . . 1 . . . 1 . . . 1 . . . . . 1 . . . 2 1 . . Processor 15 | . . . . . . . 3 . . 1 2 . . . . . 1 . . . . . . . 1 . . . . . . . . . 4 3 . . Hackware 46 | . . . . . . . . . 1 1 1 . . . . . 1 6 2 . . 1 3 2 3 9 1 . . 6 2 2 . . 2 2 . 1 Protection 25 | . . . 9 . 3 . 3 . . 1 1 2 . . . . . 1 . . 2 . . 1 . . . . . . . 1 . . 1 . . . Artifact 1 | . . . . . . . . . . . . . . . . . . . . . . . . . . . . . . . . . . . . . 1 . Weapon 106 | 2 . . 7 . 4 . 10 2 4 4 2 3 . . 2 5 2 5 4 3 6 1 . 3 6 10 1 4 1 1 2 . . 1 6 4 . 1 Energy Gun 12 | . . . . . . . . . . . . . . . . . . . . 1 3 . . . 1 3 1 2 . . . . . . . . . 1 Energy Cannon 17 | . . . 1 . . . . . . . . 1 . . . . . . 2 . . . . 1 2 2 . 2 . 1 . . . 1 4 . . . Ballistic Gun 47 | 2 . . 6 . 3 . 8 2 4 3 2 2 . . . 4 1 . 1 1 2 1 . 2 . 3 . . . . . . . . . . . . Ballistic Cannon 6 | . . . . . . . . . . . . . . . 2 . . 2 . 1 . . . . . 1 . . . . . . . . . . . . Launcher 7 | . . . . . 1 . 2 . . . . . . . . . . . 1 . 1 . . . 1 . . . . . . . . . 1 . . . Special Weapon 13 | . . . . . . . . . . 1 . . . . . 1 1 3 . . . . . . 2 1 . . 1 . 2 . . . . 1 . . Impact Weapon . | . . . . . . . . . . . . . . . . . . . . . . . . . . . . . . . . . . . . . . . Slashing Weapon . | . . . . . . . . . . . . . . . . . . . . . . . . . . . . . . . . . . . . . . . Piercing Weapon 4 | . . . . . . . . . . . . . . . . . . . . . . . . . . . . . . . . . . . 1 3 . . Special Melee Weapon . | . . . . . . . . . . . . . . . . . . . . . . . . . . . . . . . . . . . . . . . Unidentified Prototypes 30 | . . . 1 . 2 . 2 . 1 . . 1 . 1 . 1 . 1 1 . 6 1 . . 1 . . . . 1 . . . . 5 . 2 3 Corrupted Parts 8 | . . . . . . . . . . . . . . . . . . . . . 1 1 . 5 . . . . . . . . . . 1 . . . System Corruption 45 | . . . . . . . . . . . . . . . . . . . . . 9 2 . 26 . . . . . . . . . . 8 . . . Parts Lost 108 | . . . . . 9 2 2 . . 2 . 6 . . . . . 1 . 2 3 . 1 . 13 3 . 1 . 1 . . 1 23 15 2 . 21 Power 17 | . . . . . 1 . . . . . . 1 . . . . . . . . 1 . 1 . 2 . . 1 . 1 . . . 4 2 1 . 2 Propulsion 20 | . . . . . 2 . . . . . . 1 . . . . . . . 1 . . . . 2 . . . . . . . 1 3 4 . . 6 Utility 40 | . . . . . 4 1 2 . . 2 . 2 . . . . . 1 . . . . . . 3 1 . . . . . . . 8 5 1 . 10 Weapon 31 | . . . . . 2 1 . . . . . 2 . . . . . . . 1 2 . . . 6 2 . . . . . . . 8 4 . . 3 Highest Loss Streak 23 | . . . . . 7 2 1 . . 1 . 6 . . . . . 1 . 1 3 . 1 . 12 2 . 1 . 1 . . 1 23 3 1 . 13 To Critical Strikes 7 | . . . . . 4 1 . . . . . . . . . . . . . 1 . . . . . . . . . . . . 1 . . . . . Average Backups 17 | 3 11 14 16 20 16 15 15 16 15 15 15 6 4 11 21 21 19 21 21 22 22 22 20 21 21 22 22 22 23 21 20 19 17 19 5 4 3 2 Power . | . . . . . . . . . . . . . . . . . . . 1 1 1 1 1 . . 2 3 3 4 3 2 2 1 . . . . . Propulsion 2 | 1 2 2 3 4 2 2 3 2 2 2 2 1 2 3 5 3 2 2 1 . . 2 2 3 2 2 2 1 1 1 2 1 1 . . . . . Utility 8 | . 5 8 7 8 6 4 5 6 7 6 7 1 . 3 10 11 11 14 15 15 14 14 12 13 13 10 10 9 10 10 11 10 9 13 1 2 . . Weapon 4 | . 2 4 5 8 6 8 6 7 5 6 5 2 1 2 5 5 3 2 2 3 4 4 4 3 4 7 7 7 8 7 4 3 3 3 1 1 . . Tool/Special . | . . . . . . . . . . . . . . . . . . . . . . . . . . . . . . . . . . . . . . . Unused Backups 138 | . . . 15 . 7 . 10 3 6 7 2 10 . 6 1 2 1 6 . 1 5 2 . 10 5 11 . 3 . 5 1 . . 11 2 1 4 1 Power 10 | . . . . . 3 . . . . . . . . 1 . . . . . . 1 . . 1 . . . 1 . . 1 . . . 1 1 . . Propulsion 10 | . . . 2 . . . 3 . . . . 1 . 1 . . . . . . . . . . . 2 . 1 . . . . . . . . . . Utility 82 | . . . 8 . 4 . 1 1 4 4 2 7 . 2 1 1 1 6 . 1 3 2 . 9 4 6 . . . 3 . . . 11 1 . . . Weapon 29 | . . . 5 . . . 6 2 2 1 . 2 . 2 . . . . . . 1 . . . 1 3 . 1 . 2 . . . . . . 1 . Tool/Special 7 | . . . . . . . . . . 2 . . . . . 1 . . . . . . . . . . . . . . . . . . . . 3 1 Average Slot Usage (%) 84 | . 100 100 99 100 96 91 98 100 100 99 99 51 46 50 61 77 72 74 82 85 77 84 85 83 82 85 88 84 88 87 88 86 88 77 57 71 78 46 Engine 2 | . 14 14 11 11 8 4 8 . . . 4 1 . . . . . . 2 6 . . 1 1 . . . . . . . . . . . . . . Core 1 | . . . . . . . . 9 9 9 2 . . . . . . . . . . . . . 2 . . . . . . . . . . . . . Reactor 3 | . . . . . . . . . . . . 5 7 7 7 7 6 6 3 . 5 6 4 4 2 4 5 5 5 5 5 5 10 8 5 3 4 3 Treads 13 | . 28 28 21 22 21 22 18 18 18 18 15 7 7 6 7 7 12 13 13 13 13 13 13 13 10 11 11 11 11 11 11 11 10 8 1 . . . Device 8 | . 14 14 20 11 9 15 5 . . 4 7 1 . 4 15 15 6 4 . . . 2 5 6 11 16 7 15 17 16 12 7 9 9 10 13 12 5 Storage 7 | . 14 14 11 11 11 11 9 9 9 9 7 1 . 3 7 7 6 6 6 6 6 6 6 6 7 8 5 5 5 5 5 5 5 5 2 3 . . Processor 6 | . . . . . . . 11 18 18 9 14 15 15 15 15 15 19 13 4 . . . . . 2 2 . . . . . . . . 4 8 8 5 Hackware 10 | . . . . . . . . . 8 8 6 1 . . . . 5 11 27 33 27 25 25 16 11 15 32 24 23 23 27 26 26 22 5 9 17 12 Protection 4 | . . . 11 22 22 16 9 8 . 4 7 5 7 3 . . . 2 . . 5 2 1 8 8 . . . . . . 3 5 3 . . . . Energy Gun 1 | . . . . . . . . . . . . . . . . . . . . . 5 . . . 1 13 16 10 11 5 . . . . . . . . Energy Cannon 2 | . . . . . . . . . . . . 1 . . . . . . 5 8 . . . . 3 1 . 2 5 10 17 16 15 12 6 . . . Ballistic Gun 15 | . 28 28 22 22 20 22 35 36 36 35 29 8 7 7 7 22 2 . 2 8 7 19 20 18 10 1 . . . . . . . . . . . . Special Weapon 2 | . . . . . . . . . . . . . . . . . . 3 9 5 3 5 6 4 4 4 5 5 5 4 5 3 1 4 . 3 4 1 Peak Build Rating 148 | 7 9 8 18 18 35 28 44 45 44 51 61 92 92 96 96 96 95 96 90 87 114 114 116 123 133 134 125 127 128 130 129 127 136 138 131 140 140 148 Average Rating 77 | 5 8 8 15 18 23 27 35 43 42 47 56 81 92 91 95 84 90 89 88 86 98 109 111 112 121 125 123 120 127 128 123 121 135 118 77 123 131 85 On Entrance 79 | . 7 8 8 18 18 27 28 43 43 44 48 60 92 92 96 96 83 91 90 87 87 114 113 110 120 130 121 125 127 128 129 121 122 136 3 92 129 132 Avg Prop Armor Cover (%) 13 | . . . . . . . . . . . . . . . . . . . . . . . . . 7 . . . . . . . . . 14 . . 8 Naked Turns 55 | . . . . . . . . . . . . . . . . . . . . . . . . . . . . . . . . . . 20 35 . . . Heaviest Build 187 | 12 27 27 68 68 71 61 69 70 69 72 77 87 76 172 172 172 169 144 124 119 122 125 127 140 143 156 123 146 133 148 148 173 187 187 65 56 47 48 Greatest Support 160 | 40 40 40 40 40 44 44 45 45 45 43 48 70 70 87 87 87 150 150 150 150 160 160 160 160 160 160 160 160 160 160 155 150 150 135 115 59 59 66 Greatest Overweight (x) 4 | . . . 1 1 1 1 1 1 1 1 1 4 1 2 1 1 1 . . . . . . . 1 1 . . . . 1 1 1 1 1 1 . . Average Overweight (x) . | . . . . 1 1 1 1 1 1 1 1 . 1 1 1 1 . . . . . . . . . . . . . . . . 1 . . . . . Largest Inventory Capacity 30 | 8 15 15 20 20 20 20 20 20 20 20 20 20 5 30 30 30 30 25 25 25 25 25 25 25 25 25 25 25 25 25 25 25 25 25 15 10 5 5 Average Capacity 20 | 7 13 15 16 20 20 20 20 20 20 20 20 7 5 16 30 30 25 25 25 25 25 25 25 25 25 25 25 25 25 25 25 25 25 23 9 6 5 5 Most Carried 30 | 7 15 14 20 20 20 20 20 20 20 20 20 20 5 30 30 30 30 25 25 25 25 25 25 25 25 25 25 25 25 25 25 25 22 25 13 7 5 5 Average Carried 20 | 3 11 14 16 20 18 19 19 19 19 19 19 6 4 15 29 29 24 24 24 24 24 24 22 24 24 24 24 24 25 24 24 23 21 21 5 5 4 4 Final Capacity 30 | 8 15 15 20 20 20 20 20 20 20 20 20 5 5 30 30 30 25 25 25 25 25 25 25 25 25 25 25 25 25 25 25 25 25 25 15 5 5 5 Final Carried 30 | 6 14 14 20 20 20 19 20 20 20 20 20 4 5 30 30 30 24 25 25 25 25 25 22 25 25 25 25 25 25 25 25 23 20 25 11 5 5 4 Class Distribution -------------------- 38% | Botlord-Tank 13% | Gunner 11% | Mutant 8% | Scavenger-Mutant 6% | Tank 3% | Hauler-Tank 3% | Commander-Gunner 3% | Bothacker-Tank Dominant Class ---------------- Mutant | -10/Materials Mutant | -10/Mines Scavenger-Mutant | -9/Materials Scavenger-Mutant | -9/Mines Mutant | -9/Exiles Mutant | -8/Mines Scavenger-Tank | -8/Materials Gunner | -8/Garrison Gunner | -8/Materials Gunner | -8/Garrison Commander-Gunner | -7/Factory Tank | -7/Waste Tank | -7/Factory Tank | -7/Garrison Hauler-Tank | -7/Factory Bothacker-Tank | -7/Garrison Botlord-Gunner | -6/Factory Botlord-Tank | -6/Garrison Botlord-Tank | -6/Factory Botlord-Tank | -6/Extension Botlord-Tank | -6/Cetus Botlord-Tank | -6/Archives Botlord-Tank | -6/Hub_04(d) Botlord-Tank | -6/Garrison Botlord-Tank | -5/Factory Botlord-Tank | -5/Garrison Botlord-Tank | -5/Factory Botlord-Tank | -5/Garrison Botlord-Tank | -5/Factory Botlord-Tank | -5/Garrison Botlord-Tank | -5/Factory Botlord-Tank | -5/Garrison Botlord-Tank | -4/Factory Botlord-Tank | -4/Garrison Scavenger-Mutant | -3/Research Scientist-Scout | -2/Research Scientist-Ninja | -2/Quarantine Hacker-Mutant | -1/Access Resources | -11 -10 -10 -9 -9 -9 -8 -8 -8 -8 -8 -7 -7 -7 -7 -7 -7 -6 -6 -6 -6 -6 -6 -6 -6 -5 -5 -5 -5 -5 -5 -5 -5 -4 -4 -3 -2 -2 -1 ----------- Run | Yrd Mat Min Mat Min Exi Min Mat Gar Mat Gar Fac Was Fac Gar Fac Gar Fac Gar Fac Ext Cet Arc Hub Gar Fac Gar Fac Gar Fac Gar Fac Gar Fac Gar Res Res Qua Acc Matter Collected 18720 | 306 206 135 773 42 417 398 680 476 716 1540 373 294 152 851 66 1077 426 1413 266 660 383 611 304 1150 1330 825 24 280 51 639 197 398 24 421 729 87 . . Remotely 424 | . . . . . . . . . . . 74 . . . . . . . . . . . . . 350 . . . . . . . . . . . . . Salvage Created 21788 | 132 262 78 1090 80 137 321 829 371 951 1525 238 1628 328 1170 168 726 216 667 285 479 320 551 556 787 2449 1008 62 204 68 1658 195 288 258 363 1150 190 . . Parts 1094 | 13 20 11 57 11 4 31 63 21 62 89 9 15 14 65 6 44 5 27 14 31 15 35 20 41 107 47 2 8 4 82 11 17 23 16 41 13 . . Haulers Intercepted 12 | . . . 1 . . . 1 . 6 . . . 1 . . . . . . . . . . . 3 . . . . . . . . . . . . . Recyclers Shooed 15 | . . . . . . . 1 . . . . . . . . . . . . . . . . . 13 . . . . . . . . . 1 . . . Parts Field Recycled . | . . . . . . . . . . . . . . . . . . . . . . . . . . . . . . . . . . . . . . . Retrieved Matter . | . . . . . . . . . . . . . . . . . . . . . . . . . . . . . . . . . . . . . . . Parts Self-Destructed . | . . . . . . . . . . . . . . . . . . . . . . . . . . . . . . . . . . . . . . . Prevented . | . . . . . . . . . . . . . . . . . . . . . . . . . . . . . . . . . . . . . . . Parts Restored . | . . . . . . . . . . . . . . . . . . . . . . . . . . . . . . . . . . . . . . . Kills | -11 -10 -10 -9 -9 -9 -8 -8 -8 -8 -8 -7 -7 -7 -7 -7 -7 -6 -6 -6 -6 -6 -6 -6 -6 -5 -5 -5 -5 -5 -5 -5 -5 -4 -4 -3 -2 -2 -1 ------- Run | Yrd Mat Min Mat Min Exi Min Mat Gar Mat Gar Fac Was Fac Gar Fac Gar Fac Gar Fac Ext Cet Arc Hub Gar Fac Gar Fac Gar Fac Gar Fac Gar Fac Gar Res Res Qua Acc Combat Hostiles Destroyed 331 | . 7 4 18 4 5 12 17 10 11 32 6 6 5 13 3 16 4 15 4 9 3 2 5 10 13 19 1 3 1 28 4 9 8 10 12 2 . . Melee 4 | . . . . . . . . . . . . . . . . . . . . . . . . . . . . . . . . . . . 2 2 . . Guns 230 | . 7 4 18 4 1 12 17 10 11 32 6 3 5 13 3 16 . . 1 8 2 2 5 10 10 14 1 3 1 11 . . . . . . . . Cannons 63 | . . . . . . . . . . . . 1 . . . . 4 15 3 1 . . . . 2 3 . . . 12 3 3 4 6 6 . . . AOE 21 | . . . . . 4 . . . . . . . . . . . . . . . . . . . . . . . . 4 . 5 4 3 1 . . . Classes Destroyed 21 | 3 3 1 2 . 1 1 1 2 . 2 . 1 . . . . . . . 1 . . . 1 . . . . . . . . . . 2 . . . Worker 14 | 1 . . 1 . . 1 1 . . . 1 . . . . . . . . . . . 3 . 5 . . . . . . . . . 1 . . . Builder 8 | . . 1 . 1 . . 2 . 1 . . . . . . . . . . . . . . . 3 . . . . . . . . . . . . . Tunneler 4 | 2 . . . . . . . . 1 . . . . . . . . . . . . . . . . . . . . . . . . . . 1 . . Hauler 12 | . . . 1 . . . 1 . 6 . . . 1 . . . . . . . . . . . 3 . . . . . . . . . . . . . Recycler 16 | 1 . . . . . 1 1 . 1 . . . . . . . . . . . . . . . 10 . . . . . . . . . 2 . . . Operator 14 | . . . . . . . 1 . 1 . . . . . . . . . . . 1 9 2 . . . . . . . . . . . . . . . Watcher 28 | . 2 . 5 . . . 2 . 4 3 . . 1 1 . . . . . 2 . . 2 . 2 . 2 . . . . . 1 . 1 . . . Swarmer 109 | . 3 4 1 4 . 11 9 4 6 6 1 . . 8 . 4 . 3 . 4 . . . . 1 7 . 2 . 13 1 5 4 6 2 . . . Saboteur 4 | . . . . . . . . . . . . . . . . . . . . . . . . 1 1 . . . . 1 . 1 . . . . . . Grunt 65 | . 4 . 12 . . . 3 3 . 9 . . 4 1 1 1 3 5 1 . . . 2 1 2 3 . . . 4 . . . 1 4 1 . . Brawler 4 | . . . . . . . . . . 3 . . . . . . . . . . . . . . . 1 . . . . . . . . . . . . Duelist 2 | . . . . . . . . 1 . 1 . . . . . . . . . . . . . . . . . . . . . . . . . . . . Sentry 55 | . . . 6 . . . 5 1 4 10 1 . . 1 2 4 . 5 2 3 . 2 2 4 . . 1 . . 1 . 1 . . . . . . Specialist 11 | . . . . . . . . 1 . . . . . 3 . . . . . . . . . . . 2 . 2 . 2 . . . 1 . . . . Hunter 20 | . . . . . . 1 . . 1 . . . . . . . 1 . 2 . . . . . 4 2 . . 1 3 . . . 1 4 . . . Programmer 36 | . . . . . . . . . . 3 . . 1 . . 5 . 2 1 . . . . 3 5 1 . . . 3 3 4 4 . . 1 . . Behemoth 9 | . . . . . . . . . . . . . . . . . . . . 2 . . 1 1 . 3 . . . 1 . . . 1 . . . . Compactor 6 | . . . . . . . . . . . . 6 . . . . . . . . . . . . . . . . . . . . . . . . . . Cetus Guard 3 | . . . . . . . . . . . . . . . . . . . . . 3 . . . . . . . . . . . . . . . . . Enhanced Grunt 1 | . . . . . . . . . . . . . . . . . . . . . . 1 . . . . . . . . . . . . . . . . Striker 1 | . . . . . . . . . . . . . . . . . . . . . . . . . . . . . . . . . . . 1 . . . Executioner 1 | . . . . . . . . . . . . . . . . . . . . . . . . . . . . . . . . . . . 1 . . . Assembled 8 | . . . . . 4 . . . . . 4 . . . . . . . . . . . . . . . . . . . . . . . . . . . Thug 3 | . . . . . . . . . . . . . . . . 3 . . . . . . . . . . . . . . . . . . . . . . Savage 2 | . . . . . . . . . . . 1 . . . . . . . . . . . 1 . . . . . . . . . . . . . . . Guerrilla 2 | . . . . . . . . . . . . . . . . . 1 1 . . . . . . . . . . . . . . . . . . . . Best Kill Streak 8 | 2 2 2 5 4 4 5 4 6 4 6 3 3 2 5 1 4 3 3 2 4 2 3 5 4 6 4 1 2 1 8 2 3 7 7 4 2 . . Combat Bots Only 8 | . 2 2 4 4 4 4 3 6 4 6 3 3 2 5 1 4 3 3 2 4 2 2 2 4 4 4 1 2 1 8 2 3 6 7 2 1 . . Max Kills in Single Turn 5 | 1 1 1 2 1 2 2 2 2 2 2 2 1 1 1 1 2 1 2 1 1 1 1 4 2 3 2 1 1 1 4 1 5 2 2 1 1 . . Gunslinging 1 | . . . . . . . 1 1 . 1 1 . . . . 1 . . . . . . . 1 1 1 . . . . . . . . . . . . Exploded 4 | . . . . . 2 . . . . . . . . . . . . . . . . . . . . . . . . 4 . 3 2 2 1 . . . Melee 1 | . . . . . . . . . . . . . . . . . . . . . . . . . . . . . . . . . . . 1 1 . . Uniques/NPCs Destroyed 2 | . . . . . 1 . . . . . . . . . . . . . . . 1 . . . . . . . . . . . . . . . . . 8R-AWN (-9/Exiles) A7 (-6/Cetus) Combat | -11 -10 -10 -9 -9 -9 -8 -8 -8 -8 -8 -7 -7 -7 -7 -7 -7 -6 -6 -6 -6 -6 -6 -6 -6 -5 -5 -5 -5 -5 -5 -5 -5 -4 -4 -3 -2 -2 -1 -------- Run | Yrd Mat Min Mat Min Exi Min Mat Gar Mat Gar Fac Was Fac Gar Fac Gar Fac Gar Fac Ext Cet Arc Hub Gar Fac Gar Fac Gar Fac Gar Fac Gar Fac Gar Res Res Qua Acc Hostile Shots Fired 2898 | . 56 5 102 20 101 50 72 41 31 100 83 4 2 24 21 98 18 150 31 148 17 . 31 91 238 138 16 63 6 120 19 82 33 280 268 51 28 260 Missed 947 | . 11 3 25 4 15 14 18 13 9 23 36 . 2 7 11 28 6 55 13 62 6 . 7 36 65 35 3 17 1 23 1 25 14 60 112 31 21 135 Hits 1951 | . 45 2 77 16 86 36 54 28 22 77 47 4 . 17 10 70 12 95 18 86 11 . 24 55 173 103 13 46 5 97 18 57 19 220 156 20 7 125 Melee 25 | . . . . . . . . 1 . 2 3 4 . . . . . . . . . . . . 1 . . . . 1 . 3 . . 10 . . . Projectile 1926 | . 45 2 77 16 86 36 54 27 22 75 44 . . 17 10 70 12 95 18 86 11 . 24 55 172 103 13 46 5 96 18 54 19 220 146 20 7 125 AOE 4 | . . . . . . . . . . . 1 . . . . . . . . . . . . . . . . . . . . 2 . . . . . 1 Critical Strikes 104 | . . . 1 1 26 1 3 1 1 4 . 2 . . . 2 . 4 . 6 1 . 1 4 7 2 . 1 . 1 1 3 3 17 7 1 . 3 Actively Blocked 26 | . . . . . . . . . . . . . . . . . . . . . . . . . 7 2 . 1 . 1 1 . . 12 1 1 . . Part Disruptions 6 | . . . . . . . . . . . . . . . . . . . . . . . . . 3 2 . . . 1 . . . . . . . . Damage Taken 32426 | . 434 17 1001 128 1370 284 496 437 273 1032 615 466 64 246 86 814 112 1114 226 1066 291 . 469 536 3293 2130 268 783 127 1756 351 1121 202 4021 3532 406 82 2777 Core 5356 | . 98 7 156 7 148 34 59 31 38 127 13 131 . . . 44 . 174 38 120 12 . 94 46 356 174 40 56 . 109 32 156 11 917 553 45 53 1477 Absorbed by Shields 1087 | . . . . . 178 62 133 . . . . . . . . . . . . . 90 . . . 71 . . . . . . 207 187 159 . . . . Reduced by Siege Mode 651 | . . . . . . . . . . . . . . . . . . . . . . . . . . 12 . . . 251 . 35 . 353 . . . . Ignored by Resistances 169 | . . . . . . . 3 30 11 . . . . . . . . . . . . . . 125 . . . . . . . . . . . . . . Regen/Repaired (Parts) 1585 | . . . . . . . . . . . . . . . . 35 . . . . 1 . . 54 159 454 . 390 . . . . 492 . . . . . Core Remaining (%) 46 | 100 . 58 . . . 13 . . . 53 . . . . . 26 . . . . . . . 43 . . . . . . . 7 . 19 57 . 93 . Volleys Fired 1458 | 9 46 7 79 7 45 25 46 30 34 136 17 19 9 56 12 56 13 58 24 68 37 27 20 59 111 91 6 21 9 120 12 27 18 40 52 3 7 2 Largest 4 | 2 2 2 2 2 2 2 4 4 4 4 4 1 1 1 1 4 4 2 2 4 2 3 3 4 3 3 3 3 2 3 3 3 3 3 2 1 1 1 Hottest 360 | 40 40 40 46 46 46 46 100 100 100 110 115 100 60 60 60 80 130 130 150 198 240 105 105 140 240 226 210 210 130 360 360 360 360 360 188 10 10 10 Shots Fired 2935 | 18 92 14 158 14 77 50 178 81 136 349 68 18 9 56 12 167 25 81 29 119 66 77 52 134 191 187 14 46 12 186 30 41 26 52 58 3 7 2 Gun 2181 | 18 92 14 158 14 64 50 176 81 136 327 68 10 9 56 12 162 4 7 4 70 59 77 48 127 113 123 13 39 4 46 . . . . . . . . Cannon 470 | . . . . . . . . . . . . 8 . . . . 18 64 17 17 3 . . . 38 33 . 1 1 104 27 26 18 38 57 . . . Launcher 34 | . . . . . 13 . 2 . . . . . . . . . . . . . 3 . . . . . . . . 2 . 4 3 6 1 . . . Special 250 | . . . . . . . . . . 22 . . . . . 5 3 10 8 32 1 . 4 7 40 31 1 6 7 34 3 11 5 8 . 3 7 2 Kinetic 2038 | 18 92 14 158 14 64 50 176 81 136 327 68 10 9 56 12 162 22 71 9 77 58 77 48 127 97 5 . . . . . . . . . . . . Thermal 506 | . . . . . . . . . . . . 8 . . . . . . . . 1 . . . 33 151 13 40 5 150 27 26 18 34 . . . . Explosive 31 | . . . . . 13 . 2 . . . . . . . . . . . . . . . . . . . . . . 2 . 4 3 6 1 . . . Electromagnetic 110 | . . . . . . . . . . . . . . . . . . . 12 10 6 . . . 21 . . . . . . . . 4 57 . . . Robot Hit Streak 49 | 3 7 2 16 4 15 4 9 16 12 24 8 7 9 43 8 49 7 10 19 18 6 10 11 20 17 13 8 11 4 29 5 7 10 12 7 2 4 1 Robot Miss Streak 12 | 4 7 4 5 4 1 3 5 3 4 4 8 3 4 12 3 6 3 5 2 4 3 6 3 3 5 4 2 2 2 3 3 3 3 3 3 . 1 1 Penetration Max 2 | . . . . . . . . . . 1 1 . . . . . . 1 . 2 1 . 1 . 1 . . . . . . . . . . . . . Secondary Targets 44 | . . 1 2 2 . 2 6 1 . 6 3 . . . . 3 . . . 3 1 . . 3 5 4 1 1 . . . . . . . . . . Max Gunslinging Chain 1 | . . 1 1 1 . 1 1 1 . 1 1 . . . . 1 . . . 1 1 . . 1 1 1 1 1 . . . . . . . . . . Shots Hit Robots 1759 | 8 49 5 101 8 54 32 94 44 69 177 35 15 8 37 12 108 12 44 20 84 37 37 33 83 128 112 9 36 7 114 16 25 11 31 46 12 5 1 Core Hits 781 | 6 19 5 47 5 21 16 41 17 33 63 16 12 10 50 8 41 5 19 9 20 22 23 21 26 55 33 4 6 1 48 5 14 10 19 27 4 . . Critical Kills 32 | . . . . 1 . . . . . 4 1 2 . . . . . 1 . 3 3 4 . 1 8 1 . . . 1 1 1 . . . . . . Critical Parts Destroyed 48 | . . . 1 . . . 1 . . 8 1 . . . . . . 1 . 4 10 . 5 5 12 . . . . . . . . . . . . . Critical Strikes 105 | . . . 1 1 . . 1 . . 14 2 2 . . . . 1 7 . 11 15 4 7 9 21 1 . . . 1 1 1 . . 3 2 . . Meltdown 7 | . . . . . . . . . . . . 2 . . . . . . . . . . . . 1 1 . . . 1 1 1 . . . . . . Destroy 85 | . . . 1 1 . . 1 . . 14 2 . . . . . . 2 . 10 15 4 7 9 19 . . . . . . . . . . . . . Blast 6 | . . . . . . . . . . . . . . . . . 1 5 . . . . . . . . . . . . . . . . . . . . Corrupt 3 | . . . . . . . . . . . . . . . . . . . . 1 . . . . 1 . . . . . . . . . 1 . . . Impale 4 | . . . . . . . . . . . . . . . . . . . . . . . . . . . . . . . . . . . 2 2 . . Melee Attacks 61 | . . . . . . . . . . . . . . . . . . . . . . . . . . . . . . . . . . . 20 23 12 6 Impact . | . . . . . . . . . . . . . . . . . . . . . . . . . . . . . . . . . . . . . . . Slashing . | . . . . . . . . . . . . . . . . . . . . . . . . . . . . . . . . . . . . . . . Piercing 61 | . . . . . . . . . . . . . . . . . . . . . . . . . . . . . . . . . . . 20 23 12 6 Sneak Attacks 1 | . . . . . . . . . . . . . . . . . . . . . . . . . . . . . . . . . . . . 1 . . Combat Hostiles . | . . . . . . . . . . . . . . . . . . . . . . . . . . . . . . . . . . . . . . . Follow-up Attacks 3 | . . . . . . . . . . . . . . . . . . . . . . . . . . . . . . . . . . . . 3 . . Damage Inflicted 49085 | 98 519 48 1393 118 1013 472 1483 817 1241 3132 915 1946 312 2233 749 2216 495 2318 562 1083 1564 1074 1863 2256 3605 2932 239 880 29 4004 757 1619 952 1460 2191 497 . . Guns 30565 | 98 519 48 1393 118 804 472 1447 817 1241 3132 915 670 312 2233 749 2072 . 132 78 854 1285 1074 1092 2256 2412 2114 239 836 29 1124 . . . . . . . . Cannons 12802 | . . . . . . . . . . . . 657 . . . . 495 2186 434 229 25 . . . 988 818 . 44 . 2543 757 813 379 941 1493 . . . Explosions 4763 | . . . . . 209 . 36 . . . . 619 . . . 144 . . 50 . 254 . 771 . 205 . . . . 337 . 806 573 519 240 . . . Melee 955 | . . . . . . . . . . . . . . . . . . . . . . . . . . . . . . . . . . . 458 497 . . Ramming . | . . . . . . . . . . . . . . . . . . . . . . . . . . . . . . . . . . . . . . . Kinetic 28956 | 98 519 48 1393 118 804 472 1447 817 1241 3132 915 670 312 2233 749 2072 495 2318 263 917 1285 1074 1092 2256 2168 48 . . . . . . . . . . . . Thermal 12745 | . . . . . . . . . . . . 1276 . . . . . . 50 . . . . . 990 2884 239 880 29 3667 757 813 379 781 . . . . Explosive 2864 | . . . . . 209 . 36 . . . . . . . . 144 . . . . . . . . . . . . . 337 . 806 573 519 240 . . . Electromagnetic 3565 | . . . . . . . . . . . . . . . . . . . 249 166 279 . 771 . 447 . . . . . . . . 160 1493 . . . Impact . | . . . . . . . . . . . . . . . . . . . . . . . . . . . . . . . . . . . . . . . Slashing . | . . . . . . . . . . . . . . . . . . . . . . . . . . . . . . . . . . . . . . . Piercing 955 | . . . . . . . . . . . . . . . . . . . . . . . . . . . . . . . . . . . 458 497 . . Highest Corruption 30 | . . . . . . . . . . 4 . . . . . 3 . 2 2 2 11 13 1 30 8 11 11 11 11 12 12 16 2 2 8 1 1 . Average Corruption 7 | . . . . . . . . . . 3 . . . . . 2 . 2 2 2 9 7 1 14 5 10 11 11 11 11 12 14 1 2 8 1 1 . Corruption Purged 13 | . . . . . . . . . . . . . . . . . . . . . . 13 . . . . . . . . . . . . . . . . Corruption Blocked . | . . . . . . . . . . . . . . . . . . . . . . . . . . . . . . . . . . . . . . . Effects 497 | . . . . . . . . . . 36 . . . . . 5 . 9 10 14 19 21 2 65 23 67 11 32 15 56 33 33 2 7 32 2 3 . Message Errors 102 | . . . . . . . . . . 6 . . . . . 1 . 2 1 3 4 4 1 13 9 15 3 9 5 11 3 5 . 3 4 . . . Matter Fused 141 | . . . . . . . . . . 6 . . . . . 2 . 4 3 4 6 6 1 23 8 13 5 10 1 17 9 10 . 3 8 . 2 . Heat Flow Errors 64 | . . . . . . . . . . 3 . . . . . 2 . 2 3 3 2 4 . 10 . 13 . 2 1 7 5 2 2 . 3 . . . Energy Discharges 67 | . . . . . . . . . . 9 . . . . . . . 1 1 2 2 1 . 5 4 6 2 4 4 7 6 6 . . 7 . . . Parts Rejected 6 | . . . . . . . . . . . . . . . . . . . . . 1 . . 1 . . . . . 1 . 1 . 1 1 . . . Parts Fused 2 | . . . . . . . . . . 1 . . . . . . . . . . . . . . . . . 1 . . . . . . . . . . Data Loss (minor) 61 | . . . . . . . . . . 6 . . . . . . . . . 1 3 3 . 6 1 13 1 2 2 5 6 6 . . 3 2 1 . Data Loss (major) 18 | . . . . . . . . . . 2 . . . . . . . . 1 1 1 . . . 1 2 . 2 1 3 2 . . . 2 . . . Misfires 14 | . . . . . . . . . . 1 . . . . . . . . 1 . . 1 . 2 . 3 . 1 1 . . 2 . . 2 . . . Alerts 8 | . . . . . . . . . . 1 . . . . . . . . . . . . . 1 . . . 1 . 2 2 . . . 1 . . . Misdirections 1 | . . . . . . . . . . . . . . . . . . . . . . . . 1 . . . . . . . . . . . . . . Weapon Failures 13 | . . . . . . . . . . 1 . . . . . . . . . . . 2 . 3 . 2 . . . 3 . 1 . . 1 . . . Overload Shots 2 | . . . . . . . . . . . . . . . . . . . . . 1 . . . 1 . . . . . . . . . . . . . Effects 2 | . . . . . . . . . . . . . . . . . . . . . 1 . . . 1 . . . . . . . . . . . . . Heat Surge 1 | . . . . . . . . . . . . . . . . . . . . . 1 . . . . . . . . . . . . . . . . . Short Circuit 1 | . . . . . . . . . . . . . . . . . . . . . . . . . 1 . . . . . . . . . . . . . Overflow Damage 656 | . . . . . . . . . . . . . . . . . . 107 . 1 . . 109 . 32 . . . . 98 38 71 46 28 52 74 . . Projectiles 317 | . . . . . . . . . . . . . . . . . . 107 . 1 . . . . 20 . . . . 98 38 30 . . 23 . . . Explosions 256 | . . . . . . . . . . . . . . . . . . . . . . . 109 . 12 . . . . . . 41 46 28 20 . . . Melee 83 | . . . . . . . . . . . . . . . . . . . . . . . . . . . . . . . . . . . 9 74 . . Knockbacks 10 | . . . . . . . . . . . . . . . . . 1 9 . . . . . . . . . . . . . . . . . . . . Impact . | . . . . . . . . . . . . . . . . . . . . . . . . . . . . . . . . . . . . . . . Kinetic 10 | . . . . . . . . . . . . . . . . . 1 9 . . . . . . . . . . . . . . . . . . . . Secondary . | . . . . . . . . . . . . . . . . . . . . . . . . . . . . . . . . . . . . . . . Self-Inflicted Damage 530 | . . . . . . . . . . . . 289 . . . 71 . . . . . . 96 . 48 . . . . 26 . . . . . . . . Shots 8 | . . . . . . . . . . . . 4 . . . 1 . . . . . . 1 . 1 . . . . 1 . . . . . . . . Rammed . | . . . . . . . . . . . . . . . . . . . . . . . . . . . . . . . . . . . . . . . Targets Rammed . | . . . . . . . . . . . . . . . . . . . . . . . . . . . . . . . . . . . . . . . Kicked . | . . . . . . . . . . . . . . . . . . . . . . . . . . . . . . . . . . . . . . . Crushed . | . . . . . . . . . . . . . . . . . . . . . . . . . . . . . . . . . . . . . . . Highest Temperature 434 | . 24 . 35 . 28 12 109 348 183 313 24 175 159 250 105 223 33 162 269 333 364 285 117 275 261 329 120 358 163 302 339 375 416 434 254 . . . Average Temperature 74 | . 11 . 8 . 11 5 28 148 62 85 7 72 47 75 42 75 33 48 83 100 118 55 39 86 70 95 35 87 91 52 99 139 151 124 85 . . . Received Heat Transfer 4178 | . 132 . 471 . 42 . 152 180 72 279 36 . 9 9 33 129 18 249 12 156 18 . 147 268 60 228 18 168 9 117 . 95 . 546 363 54 9 99 Effects 22 | . . . . . . . . 3 . 2 . . . . . . . . . 1 1 . . 4 2 . . 1 . . 2 . 2 3 1 . . . Shutdowns 3 | . . . . . . . . . . . . . . . . . . . . . . . . . . . . . . . 1 . 1 1 . . . . Energy Bleed 11 | . . . . . . . . 1 . 1 . . . . . . . . . 1 1 . . 3 . . . 1 . . . . . 2 1 . . . Interference 7 | . . . . . . . . 2 . 1 . . . . . . . . . . . . . 1 2 . . . . . 1 . . . . . . . Matter Decay 1 | . . . . . . . . . . . . . . . . . . . . . . . . . . . . . . . . . 1 . . . . . Siege Activations 7 | . . . . . . . . . . . . . . . . . . 1 . . . . . . . 2 . . . 2 . 1 . 1 . . . . Total Turns 99 | . . . . . . . . . . . . . . . . . . 2 . . . . . . . 16 . . . 35 . 19 . 27 . . . . Longest Duration 28 | . . . . . . . . . . . . . . . . . . 2 . . . . . . . 8 . . . 28 . 19 . 27 . . . . Martial Activations . | . . . . . . . . . . . . . . . . . . . . . . . . . . . . . . . . . . . . . . . Shielding Activations . | . . . . . . . . . . . . . . . . . . . . . . . . . . . . . . . . . . . . . . . Robots Disrupted 1 | . . . . . . . . . . . . . . . . . . . . . . . . . 1 . . . . . . . . . . . . . Combat Hostiles 1 | . . . . . . . . . . . . . . . . . . . . . . . . . 1 . . . . . . . . . . . . . Robots Corrupted 7 | . . . . . . . . . . . . . . . . . . . . . 1 . 1 . 1 . . . . . . . . 1 3 . . . Combat Hostiles 5 | . . . . . . . . . . . . . . . . . . . . . 1 . . . . . . . . . . . . 1 3 . . . Parts Fried 21 | . . . . . . . . . . . . . . . . . . . . . . . 3 . 3 . . . . . . . . 3 12 . . . Impact Corruptions . | . . . . . . . . . . . . . . . . . . . . . . . . . . . . . . . . . . . . . . . Robots Melted 8 | . . . . . . . . . . . . 2 . . . . . . . . . . . . 1 2 . . . 1 1 1 . . . . . . Combat Hostiles 8 | . . . . . . . . . . . . 2 . . . . . . . . . . . . 1 2 . . . 1 1 1 . . . . . . Parts Melted 29 | . . . . . . . . . . . . . 1 . 1 1 . . . . . . . . 1 8 . 5 . 7 3 2 . . . . . . Heat Transferred 12414 | . . . . . . . . . . . . 1250 . . . . . . 50 . . . . . 958 3145 296 1110 37 3404 592 629 240 703 . . . . Parts Sabotaged 7 | . . . . . . . . . . . . . . . . . . . . . . . . . 2 . . . . 1 . 4 . . . . . . Parts Stolen . | . . . . . . . . . . . . . . . . . . . . . . . . . . . . . . . . . . . . . . . Parts Stripped . | . . . . . . . . . . . . . . . . . . . . . . . . . . . . . . . . . . . . . . . Power Chain Reactions 3 | . . . . . . . . . . . . . . . . . . . 1 . . . . . 2 . . . . . . . . . . . . . Alert | -11 -10 -10 -9 -9 -9 -8 -8 -8 -8 -8 -7 -7 -7 -7 -7 -7 -6 -6 -6 -6 -6 -6 -6 -6 -5 -5 -5 -5 -5 -5 -5 -5 -4 -4 -3 -2 -2 -1 ------- Run | Yrd Mat Min Mat Min Exi Min Mat Gar Mat Gar Fac Was Fac Gar Fac Gar Fac Gar Fac Ext Cet Arc Hub Gar Fac Gar Fac Gar Fac Gar Fac Gar Fac Gar Res Res Qua Acc Maximum Alert Level 5 | . . . 1 . . . . 1 1 5 3 1 1 4 3 4 2 3 1 . . . 2 3 2 3 2 3 2 5 3 2 1 . . . . . Low Security (%) 46 | 100 100 100 93 100 . 100 100 24 98 20 . 99 97 . . . . 2 22 100 100 100 87 . . . . . . . . . . 100 100 100 100 100 Level 1 12 | . . . 6 . . . . 75 1 28 . . 2 17 . . 90 33 77 . . . 3 18 . 17 . . 12 10 . . 100 . . . . . Level 2 20 | . . . . . . . . . . 7 51 . . 1 6 22 10 57 . . . . 8 48 100 57 100 31 87 11 61 100 . . . . . . Level 3 12 | . . . . . . . . . . 20 48 . . 12 93 47 . 6 . . . . . 32 . 24 . 67 . 34 38 . . . . . . . Level 4 6 | . . . . . . . . . . 18 . . . 67 . 30 . . . . . . . . . . . . . 29 . . . . . . . . Level 5 . | . . . . . . . . . . 5 . . . . . . . . . . . . . . . . . . . 13 . . . . . . . . High Security . | . . . . . . . . . . . . . . . . . . . . . . . . . . . . . . . . . . . . . . . Max Security . | . . . . . . . . . . . . . . . . . . . . . . . . . . . . . . . . . . . . . . . Peak Influence 1680 | 10 54 103 297 80 . 172 151 398 213 1677 879 205 325 1537 866 1312 689 728 382 89 122 60 418 1020 566 850 638 869 457 1680 962 660 346 175 31 60 33 98 Initial 882 | . 3 3 . 15 . . 51 12 193 36 879 198 . 223 806 473 688 166 382 79 39 . . 276 534 319 445 429 455 319 882 413 346 154 4 . 29 . Average 383 | 1 13 25 86 22 . 39 68 277 48 654 702 68 42 1062 811 940 294 453 259 30 35 6 127 662 495 584 548 720 422 1005 689 589 266 118 5 17 17 22 Influence Increases 17889 | 20 219 159 855 95 . 290 586 426 471 1661 216 39 623 1334 327 879 125 652 258 513 275 253 687 782 781 601 338 530 272 1501 489 527 198 190 256 197 82 182 Destroy 0b10 Robot/C 7949 | . 140 120 520 80 . 240 340 280 220 820 112 . 240 464 112 372 60 318 135 300 120 60 150 342 336 312 84 192 48 648 144 270 100 120 120 30 . . Destroy 0b10 Robot/NC 509 | 20 10 5 35 5 . 10 40 . 70 15 8 . 12 28 . 4 . 8 4 12 4 36 28 8 81 3 15 . 9 12 9 . 3 . 12 3 . . Destroy Leader 1239 | . 34 20 162 10 . 40 96 20 90 30 34 . 36 24 40 32 14 15 50 38 . . 44 30 92 30 24 12 16 36 58 35 16 20 31 10 . . Allied During Kill 3153 | . . 14 78 . . . . 11 . 206 50 . 283 485 100 192 17 69 50 105 114 90 48 90 73 36 88 138 39 437 182 136 5 13 . 4 . . Successful Hack 439 | . 20 . 30 . . . 30 . 43 19 . . . . . 27 . 16 9 47 . . 38 9 22 5 3 . . 18 47 . 8 . . 14 26 8 Select Force Hacks 28 | . . . . . . . . . . . . . . . 16 . 12 . . . . . . . . . . . . . . . . . . . . . Disable Machine 666 | . . . 15 . . . 30 . 30 . 12 . 12 . 24 . 10 48 . . 12 48 168 . 45 . . 9 72 . 27 . 24 8 16 8 48 . Anti-Garrison Action 1455 | . . . . . . . . 50 . 350 . . . 200 . 171 . 106 . . . . . 218 . 150 . 30 . 180 . . . . . . . . Destroy Structure 1769 | . . . . . . . 20 20 3 131 . 39 28 133 23 81 12 28 10 11 25 19 199 73 132 56 124 149 88 161 22 68 42 21 21 16 8 6 Partial Spotted 29 | . . . . . . . . . . . . . . . 12 . . . . . . . . . . . . . . . . 9 . . . . . 8 Lose Combat Pursuer 653 | . 15 . 15 . . . 30 45 15 90 . . 12 . . . . 44 . . . . 12 12 . 9 . . . 9 . 9 . 8 56 112 . 160 Influence Decreases 17883 | 15 214 169 815 135 . 158 699 47 813 40 1326 606 304 116 1187 244 1199 162 824 605 345 253 292 159 1342 208 575 274 684 278 1578 458 638 402 264 144 134 177 Entered New Map 6968 | . 2 7 . 25 . . 81 7 205 20 798 369 . 96 731 204 624 72 346 83 31 . . 119 484 138 405 184 414 138 798 178 314 66 4 . 24 1 Time Decay 6910 | 15 212 162 585 110 . 158 598 . 488 . 428 177 244 . 246 . 160 . 368 361 224 173 202 . 518 . 150 . 190 . 380 . 294 . 208 91 100 68 Lost Part 636 | . . . . . . . 20 . . 20 . 60 . . . . . 10 . 20 30 . 10 . 130 30 . 10 . 10 . . 10 106 52 10 . 108 Lost Ally 2274 | . . . 80 . . . . 40 . . 100 . 60 20 60 40 40 80 110 141 60 80 80 40 210 40 20 80 80 130 100 280 20 230 . 43 10 . Purge Threat 1095 | . . . 150 . . . . . 120 . . . . . 150 . 375 . . . . . . . . . . . . . 300 . . . . . . . Squads Dispatched 44 | . . . 2 . . . 2 . . . 3 . 2 . 4 . 2 . 5 1 . . 2 . 4 . 1 . . . 2 . 1 . 7 1 2 3 Investigation 10 | . . . . . . . . . . . . . . . 1 . 1 . 2 1 . . 1 . . . . . . . . . . . 2 . 1 1 Extermination 12 | . . . . . . . . . . . 1 . 1 . . . . . 1 . . . . . 2 . 1 . . . 2 . 1 . . 1 1 1 Reinforcement 17 | . . . 2 . . . 2 . . . 1 . . . 1 . 1 . 1 . . . 1 . 2 . . . . . . . . . 5 . . 1 Assault 2 | . . . . . . . . . . . 1 . . . 1 . . . . . . . . . . . . . . . . . . . . . . . Garrison 3 | . . . . . . . . . . . . . 1 . 1 . . . 1 . . . . . . . . . . . . . . . . . . . Intercept . | . . . . . . . . . . . . . . . . . . . . . . . . . . . . . . . . . . . . . . . Searches Triggered . | . . . . . . . . . . . . . . . . . . . . . . . . . . . . . . . . . . . . . . . Unchained Authorized 1 | . . . . . . . . . . . . . . . . . . . . . . . . . . . . . 1 . . . . . . . . . Construction Impeded 1 | . . . . . . . 1 . . . . . . . . . . . . . . . . . . . . . . . . . . . . . . . Haulers Reinforced 3 | . . . . . . . . . . . . . . . . . . . . . . . . . 1 . . . . . . . . . 2 . . . Active Scanning Responses . | . . . . . . . . . . . . . . . . . . . . . . . . . . . . . . . . . . . . . . . Cargo Convoy Interrupts 2 | . . . . . . . . . . . . . . . . . . . . . . . . . 1 . . . . . 1 . . . . . . . Stealth | -11 -10 -10 -9 -9 -9 -8 -8 -8 -8 -8 -7 -7 -7 -7 -7 -7 -6 -6 -6 -6 -6 -6 -6 -6 -5 -5 -5 -5 -5 -5 -5 -5 -4 -4 -3 -2 -2 -1 --------- Run | Yrd Mat Min Mat Min Exi Min Mat Gar Mat Gar Fac Was Fac Gar Fac Gar Fac Gar Fac Ext Cet Arc Hub Gar Fac Gar Fac Gar Fac Gar Fac Gar Fac Gar Res Res Qua Acc Distress Signals 35 | . 2 . 3 . . . . . . 1 . . . . . . 1 . . 1 2 . 3 . 3 . . . 1 . . . 3 . 11 2 1 1 Communications Jammed 213 | . . . . . . . . . . 20 . . . . . . . . 2 20 2 . 14 . 51 . . . . . 12 . 67 . . 25 . . Distress Signals 211 | . . . . . . . . . . 20 . . . . . . . . . 20 2 . 14 . 51 . . . . . 12 . 67 . . 25 . . Times Spotted 815 | . 12 5 33 4 8 12 26 15 18 43 22 6 16 25 5 23 8 38 13 26 9 15 16 23 57 29 9 10 9 57 11 32 22 27 44 29 12 46 Peak Tracking Total 11 | . 5 3 6 4 10 4 5 9 4 7 7 4 3 6 2 3 3 6 2 4 5 2 4 7 11 5 4 5 3 8 3 6 5 10 9 10 9 11 Tactical Retreats 37 | . 1 . 1 . 2 . 1 1 1 4 . . 1 . . . . 2 . . . . 1 1 . 1 . . . 1 . 1 . 1 4 7 . 6 Traps | -11 -10 -10 -9 -9 -9 -8 -8 -8 -8 -8 -7 -7 -7 -7 -7 -7 -6 -6 -6 -6 -6 -6 -6 -6 -5 -5 -5 -5 -5 -5 -5 -5 -4 -4 -3 -2 -2 -1 ------- Run | Yrd Mat Min Mat Min Exi Min Mat Gar Mat Gar Fac Was Fac Gar Fac Gar Fac Gar Fac Ext Cet Arc Hub Gar Fac Gar Fac Gar Fac Gar Fac Gar Fac Gar Res Res Qua Acc Traps Triggered 45 | . . . 3 . . . . 2 1 7 2 . 1 4 . 5 1 4 1 1 . . . 3 . 3 . 1 . 1 . 1 1 1 2 . . . Indirectly . | . . . . . . . . . . . . . . . . . . . . . . . . . . . . . . . . . . . . . . . Trap Hack Attempts . | . . . . . . . . . . . . . . . . . . . . . . . . . . . . . . . . . . . . . . . Triggered . | . . . . . . . . . . . . . . . . . . . . . . . . . . . . . . . . . . . . . . . Disarmed 1 | . . . . . . . . . . . . . . . . . . . . . . . . . . . . . . . . . . . . . 1 . Reprogrammed 14 | . . . . . . . . . . . . . . . . . . . . 14 . . . . . . . . . . . . . . . . . . Reused . | . . . . . . . . . . . . . . . . . . . . . . . . . . . . . . . . . . . . . . . Traps Extracted . | . . . . . . . . . . . . . . . . . . . . . . . . . . . . . . . . . . . . . . . Installed . | . . . . . . . . . . . . . . . . . . . . . . . . . . . . . . . . . . . . . . . Triggered . | . . . . . . . . . . . . . . . . . . . . . . . . . . . . . . . . . . . . . . . Machines | -11 -10 -10 -9 -9 -9 -8 -8 -8 -8 -8 -7 -7 -7 -7 -7 -7 -6 -6 -6 -6 -6 -6 -6 -6 -5 -5 -5 -5 -5 -5 -5 -5 -4 -4 -3 -2 -2 -1 ---------- Run | Yrd Mat Min Mat Min Exi Min Mat Gar Mat Gar Fac Was Fac Gar Fac Gar Fac Gar Fac Ext Cet Arc Hub Gar Fac Gar Fac Gar Fac Gar Fac Gar Fac Gar Res Res Qua Acc Machines Disabled 108 | . . . 1 . 5 . 2 1 2 3 1 . 1 3 2 5 1 5 . 2 1 4 14 8 5 7 . 5 8 5 3 . 3 2 2 1 6 . Max in Single Turn 6 | . . . 1 . 1 . 1 1 1 1 1 . 1 1 1 2 1 1 . 1 1 1 6 1 1 1 . 1 . 1 . . 2 1 1 1 1 . Garrison Access 5 | . . . . . . . . . . . . . . . . . . . 2 . . . . . . . . . . . . . . . 2 . . 1 Garrison Relay 22 | . . . . . . . . 1 . 3 . . . 2 . 2 . 1 . . . . . 5 . 3 . 1 . 4 . . . . . . . . Phase Generator 2 | . . . . . . . . . . . . . . . . 1 . 1 . . . . . . . . . . . . . . . . . . . . Network Hub 2 | . . . . . . . . . . . . . . . . . . . . . . . 2 . . . . . . . . . . . . . . . Machines Repaired . | . . . . . . . . . . . . . . . . . . . . . . . . . . . . . . . . . . . . . . . Machines Dismantled . | . . . . . . . . . . . . . . . . . . . . . . . . . . . . . . . . . . . . . . . Machines Sabotaged . | . . . . . . . . . . . . . . . . . . . . . . . . . . . . . . . . . . . . . . . Overloaded Fab Kills . | . . . . . . . . . . . . . . . . . . . . . . . . . . . . . . . . . . . . . . . Hacking | -11 -10 -10 -9 -9 -9 -8 -8 -8 -8 -8 -7 -7 -7 -7 -7 -7 -6 -6 -6 -6 -6 -6 -6 -6 -5 -5 -5 -5 -5 -5 -5 -5 -4 -4 -3 -2 -2 -1 --------- Run | Yrd Mat Min Mat Min Exi Min Mat Gar Mat Gar Fac Was Fac Gar Fac Gar Fac Gar Fac Ext Cet Arc Hub Gar Fac Gar Fac Gar Fac Gar Fac Gar Fac Gar Res Res Qua Acc Machines Accessed 149 | . 9 . 11 . 1 . 10 2 11 2 2 . 4 2 5 3 2 3 11 17 . . 4 1 6 1 2 1 2 3 7 . 3 . 7 4 9 4 Terminals 102 | . 7 . 9 . . . 8 2 8 2 . . 2 2 1 3 . 3 7 16 . . 3 1 3 1 1 1 1 3 5 . . . 2 2 8 1 Fabricators 5 | . . . . . . . . . . . . . 1 . 1 . 1 . . . . . . . . . . . . . 1 . . . . . . 1 Repair Stations 1 | . . . . . . . . . . . . . . . . . . . . . . . . . . . . . . . . . 1 . . . . . Recycling Units 13 | . 2 . 1 . . . . . . . 1 . . . 1 . . . 1 1 . . . . 2 . . . . . . . . . 3 1 . . Scanalyzers 10 | . . . 1 . . . 1 . 2 . 1 . . . 1 . . . 1 . . . . . . . . . . . . . 1 . . 1 . 1 Garrison Access 17 | . . . . . . . 1 . 1 . . . 1 . 1 . 1 . 2 . . . 1 . 1 . 1 . 1 . 1 . 1 . 2 . 1 1 Total Hacks 363 | . 19 . 23 . 1 . 32 4 32 3 2 . 6 3 8 3 2 4 18 46 . . 12 4 24 2 3 2 4 6 23 . 10 . 16 17 25 9 Successful 165 | . 6 . 9 . 1 . 17 2 20 2 1 . 1 1 5 3 2 2 7 26 . . 6 1 7 1 2 . 1 2 9 . 6 . 5 7 9 4 Failed 194 | . 13 . 13 . . . 14 2 11 1 1 . 5 2 3 . . 2 11 20 . . 6 3 17 1 1 2 3 4 14 . 3 . 11 10 16 5 Catastrophic 48 | . 2 . 3 . . . 2 . 3 . 1 . 4 1 . . . . 4 4 . . . 1 3 . 1 . 2 1 5 . . . . 4 5 2 Database Lockouts 4 | . . . 1 . . . 1 . 1 . . . . . . . . . . . . . . . . . . . . . . . 1 . . . . . Manual 103 | . 16 . 15 . 1 . 15 . 17 . . . . . 1 . 1 . 1 14 1 . 8 1 5 . 1 . 1 . . . . . . . 5 . Terminals 270 | . 16 . 20 . . . 28 4 25 3 . . 4 3 2 3 . 4 14 45 . . 9 4 18 2 2 2 2 6 19 . . . 6 3 22 4 Fabricators 8 | . . . . . . . . . . . . . 1 . 1 . 1 . . . . . . . . . . . . . 3 . . . . . . 2 Repair Stations 4 | . . . . . . . . . . . . . . . . . . . . . . . . . . . . . . . . . 4 . . . . . Recycling Units 24 | . 3 . 1 . . . . . . . 1 . . . 2 . . . 1 1 . . . . 5 . . . . . . . . . 8 2 . . Scanalyzers 33 | . . . 2 . . . 3 . 6 . 1 . . . 2 . . . 1 . . . . . . . . . . . . . 5 . . 12 . 1 Garrison Access 23 | . . . . . . . 1 . 1 . . . 1 . 1 . 1 . 2 . . . 3 . 1 . 1 . 2 . 1 . 1 . 2 . 3 2 Terminal Hacks 85 | . 1 . 3 . 1 . 9 2 8 2 . . . 1 1 3 . 2 5 20 . . 4 1 3 1 1 . . 2 6 . . . 1 1 7 . Record 1 | . . . . . . . . . . . . . . . . . . . . . . . . . . . . . . . . . . . . . 1 . Part Schematic 2 | . . . . . . . . . . . . . . . . . . . . 2 . . . . . . . . . . . . . . . . . . Robot Schematic 1 | . . . . . . . . . . . . . . . . . . . 1 . . . . . . . . . . . . . . . . . . . Robot Analysis 2 | . . . . . . . . . . . . . . . . . . . . 1 . . . . . . . . . . 1 . . . . . . . Prototype ID Bank 1 | . . . . . . . . . . . . . . . . . . . . 1 . . . . . . . . . . . . . . . . . . Open Door 12 | . . . . . . . . . . 1 . . . . . 1 . 1 1 5 . . . . . 1 . . . . . . . . . 1 1 . Open DSF 1 | . . . . . . . . . . . . . . . . . . . . . . . . . . . . . . . . . . . 1 . . . Level Access Points 2 | . . . . . . . . . . . . . . . . . . . . . . . 1 . . . . . . . . . . . . . 1 . Branch Access Points 3 | . . . 1 . . . . . . . . . . . . . . . 1 . . . . . . . . . . . 1 . . . . . . . Emergency Access Points 9 | . . . . . . . . 1 . 1 . . . 1 . 1 . . 1 . . . . 1 . . . . . 1 1 . . . . . 1 . Terminal Index 5 | . . . . . . . 1 . 1 . . . . . . . . . . 1 . . . . 1 . 1 . . . . . . . . . . . Fabricator Index 1 | . . . . . . . . . 1 . . . . . . . . . . . . . . . . . . . . . . . . . . . . . Garrison Index 1 | . . . . . . . . . . . . . . . . . . . . . . . 1 . . . . . . . . . . . . . . . Alert Level 1 | . . . . . . . 1 . . . . . . . . . . . . . . . . . . . . . . . . . . . . . . . Unreport Threat 5 | . . . 1 . . . . . 1 . . . . . 1 . . . . . . . . . . . . . . . 2 . . . . . . . Locate Traps 3 | . . . . . . . 2 . . . . . . . . . . . . . . . . . 1 . . . . . . . . . . . . . Disarm Traps 2 | . . . . . . . . . . . . . . . . . . . . . . . . . . . . . . . . . . . . . 2 . Reprogram Traps 4 | . . . . . . . . . . . . . . . . . . . . 4 . . . . . . . . . . . . . . . . . . Dispatch Records 1 | . . . . . . . . . . . . . . . . . . . . 1 . . . . . . . . . . . . . . . . . . Recall Reinforcements 1 | . . . . . . . 1 . . . . . . . . . . . . . . . . . . . . . . . . . . . . . . . Hauler Manifests 4 | . . . . . . . 1 . 2 . . . . . . . . . . 1 . . . . . . . . . . . . . . . . . . Registered Components 4 | . . . . . . . 1 . . . . . . . . . . . . 1 . . 1 . 1 . . . . . . . . . . . . . Zone Layout 14 | . 1 . 1 . . . 2 . 3 . . . . . . . . . 1 3 . . 1 . . . . . . . 1 . . . . . 1 . Garrison Registry 2 | . . . . . . . . 1 . . . . . . . 1 . . . . . . . . . . . . . . . . . . . . . . Patrol Navigation 1 | . . . . . . . . . . . . . . . . . . . . . . . . . . . . . . 1 . . . . . . . . Security Stations 1 | . . . . . . . . . . . . . . . . . . 1 . . . . . . . . . . . . . . . . . . . . Proto ID Catalog 1 | . . . . . 1 . . . . . . . . . . . . . . . . . . . . . . . . . . . . . . . . . Fabricator Hacks 3 | . . . . . . . . . . . . . . . . . . . . . . . . . . . . . . . 2 . . . . . . 1 Network Status 2 | . . . . . . . . . . . . . . . . . . . . . . . . . . . . . . . 1 . . . . . . 1 Build 1 | . . . . . . . . . . . . . . . . . . . . . . . . . . . . . . . 1 . . . . . . . Repair Station Hacks 2 | . . . . . . . . . . . . . . . . . . . . . . . . . . . . . . . . . 2 . . . . . Scan Component 1 | . . . . . . . . . . . . . . . . . . . . . . . . . . . . . . . . . 1 . . . . . Repair 1 | . . . . . . . . . . . . . . . . . . . . . . . . . . . . . . . . . 1 . . . . . Recycling Unit Hacks 10 | . 2 . . . . . . . . . 1 . . . 1 . . . . 1 . . . . 3 . . . . . . . . . 2 . . . Retrieve Components 10 | . 2 . . . . . . . . . 1 . . . 1 . . . . 1 . . . . 3 . . . . . . . . . 2 . . . Scanalyzer 18 | . . . 1 . . . 2 . 4 . . . . . 1 . . . . . . . . . . . . . . . . . 3 . . 6 . 1 Insert Component 1 | . . . . . . . . . 1 . . . . . . . . . . . . . . . . . . . . . . . . . . . . . Analyze 1 | . . . . . . . . . 1 . . . . . . . . . . . . . . . . . . . . . . . . . . . . . Retrieve Study 16 | . . . 1 . . . 2 . 2 . . . . . 1 . . . . . . . . . . . . . . . . . 3 . . 6 . 1 Garrison Access Hacks 18 | . . . . . . . 1 . 1 . . . 1 . 1 . 1 . 2 . . . 1 . 1 . 1 . 1 . 1 . 1 . 2 . 1 2 Unlock Access 12 | . . . . . . . 1 . 1 . . . 1 . 1 . 1 . . . . . 1 . 1 . 1 . 1 . 1 . 1 . . . 1 . Seal Access 5 | . . . . . . . . . . . . . . . . . . . 2 . . . . . . . . . . . . . . . 2 . . 1 Coupler Status 1 | . . . . . . . . . . . . . . . . . . . . . . . . . . . . . . . . . . . . . . 1 Unauthorized Hacks 29 | . 3 . 5 . . . 5 . 7 . . . . . 1 . 1 . . 5 . . 1 . . . . . . . . . . . . . 1 . Terminals 25 | . 3 . 5 . . . 5 . 7 . . . . . . . . . . 5 . . . . . . . . . . . . . . . . . . Botnet 2 | . . . . . . . . . 2 . . . . . . . . . . . . . . . . . . . . . . . . . . . . . Skim 23 | . 3 . 5 . . . 5 . 5 . . . . . . . . . . 5 . . . . . . . . . . . . . . . . . . Fabricators 2 | . . . . . . . . . . . . . . . 1 . 1 . . . . . . . . . . . . . . . . . . . . . Download 2 | . . . . . . . . . . . . . . . 1 . 1 . . . . . . . . . . . . . . . . . . . . . Repair Stations . | . . . . . . . . . . . . . . . . . . . . . . . . . . . . . . . . . . . . . . . Recycling Units . | . . . . . . . . . . . . . . . . . . . . . . . . . . . . . . . . . . . . . . . Scanalyzers . | . . . . . . . . . . . . . . . . . . . . . . . . . . . . . . . . . . . . . . . Garrison Access 2 | . . . . . . . . . . . . . . . . . . . . . . . 1 . . . . . . . . . . . . . 1 . Reprogram 2 | . . . . . . . . . . . . . . . . . . . . . . . 1 . . . . . . . . . . . . . 1 . Data Cores Recovered 1 | . . . . . . . . . 1 . . . . . . . . . . . . . . . . . . . . . . . . . . . . . Used . | . . . . . . . . . . . . . . . . . . . . . . . . . . . . . . . . . . . . . . . Hacking Detections 111 | . 7 . 9 . . . 8 2 9 . 1 . 3 2 3 2 . 2 9 13 1 . 4 1 5 . 1 1 2 1 6 . 1 . 5 3 7 3 Full Trace Events 7 | . . . . . . . . . . . . . . 1 . . . . 2 1 . . 1 . . . . . . . . . . . 1 . . 1 Feedback Events . | . . . . . . . . . . . . . . . . . . . . . . . . . . . . . . . . . . . . . . . Feedback Blocked . | . . . . . . . . . . . . . . . . . . . . . . . . . . . . . . . . . . . . . . . Robot Schematics Acquired 3 | . . . . . . . . . . . . . . . 1 . 1 . 1 . . . . . . . . . . . . . . . . . . . Robots Built 3 | . . . . . . . . . . . . . . . . . . . . . . . . . . . . . . . 3 . . . . . . . Authchips . | . . . . . . . . . . . . . . . . . . . . . . . . . . . . . . . . . . . . . . . Time 76 | . . . . . . . . . . . . . . . . . . . . . . . . . . . . . . . 76 . . . . . . . Total Robot Build Rating 15 | . . . . . . . . . . . . . . . . . . . . . . . . . . . . . . . 15 . . . . . . . Part Schematics Acquired 3 | . . . . . . . . . 1 . . . . . . . . . . 2 . . . . . . . . . . . . . . . . . . Parts Built . | . . . . . . . . . . . . . . . . . . . . . . . . . . . . . . . . . . . . . . . Authchips . | . . . . . . . . . . . . . . . . . . . . . . . . . . . . . . . . . . . . . . . Time . | . . . . . . . . . . . . . . . . . . . . . . . . . . . . . . . . . . . . . . . Total Part Build Rating . | . . . . . . . . . . . . . . . . . . . . . . . . . . . . . . . . . . . . . . . Part Studies Acquired 14 | . . . 1 . . . 2 . 2 . . . . . . . . . . . . . . . . . . . . . . . 2 . . 6 . 1 Parts Repaired 1 | . . . . . . . . . . . . . . . . . . . . . . . . . . . . . . . . . 1 . . . . . Time 37 | . . . . . . . . . . . . . . . . . . . . . . . . . . . . . . . . . 37 . . . . . Parts Recycled . | . . . . . . . . . . . . . . . . . . . . . . . . . . . . . . . . . . . . . . . Recycled Matter . | . . . . . . . . . . . . . . . . . . . . . . . . . . . . . . . . . . . . . . . Retrieved Matter . | . . . . . . . . . . . . . . . . . . . . . . . . . . . . . . . . . . . . . . . Retrieved Components 45 | . 10 . . . . . . . . . 3 . . . 1 . . . . 8 . . . . 13 . . . . . . . . . 10 . . . Parts Scanalyzed 1 | . . . . . . . . . 1 . . . . . . . . . . . . . . . . . . . . . . . . . . . . . Part Schematics Acquired 1 | . . . . . . . . . 1 . . . . . . . . . . . . . . . . . . . . . . . . . . . . . Parts Damaged . | . . . . . . . . . . . . . . . . . . . . . . . . . . . . . . . . . . . . . . . Bothacking | -11 -10 -10 -9 -9 -9 -8 -8 -8 -8 -8 -7 -7 -7 -7 -7 -7 -6 -6 -6 -6 -6 -6 -6 -6 -5 -5 -5 -5 -5 -5 -5 -5 -4 -4 -3 -2 -2 -1 ------------ Run | Yrd Mat Min Mat Min Exi Min Mat Gar Mat Gar Fac Was Fac Gar Fac Gar Fac Gar Fac Ext Cet Arc Hub Gar Fac Gar Fac Gar Fac Gar Fac Gar Fac Gar Res Res Qua Acc Used RIF Installer 13 | . . . . . . . . 2 . 1 . . . 1 . 2 . 1 . . . . . 2 . 1 . 1 . 1 . 1 . . . . . . Coupler Efficiency 1 | . . . . . . . . . . . . . . 1 . . . . . . . . . . . . . . . . . . . . . . . . Hotswap 1 | . . . . . . . . . . . . . . . . . . 1 . . . . . . . . . . . . . . . . . . . . Command Fork 1 | . . . . . . . . . . . . . . . . 1 . . . . . . . . . . . . . . . . . . . . . . Threat Obfuscator 3 | . . . . . . . . . . . . . . . . 1 . . . . . . . 1 . . . . . . . 1 . . . . . . Signal Jammer 1 | . . . . . . . . 1 . . . . . . . . . . . . . . . . . . . . . . . . . . . . . . Patrol Navigation 1 | . . . . . . . . . . . . . . . . . . . . . . . . 1 . . . . . . . . . . . . . . Structural Interface 1 | . . . . . . . . . . . . . . . . . . . . . . . . . . . . 1 . . . . . . . . . . Program Shield 1 | . . . . . . . . . . 1 . . . . . . . . . . . . . . . . . . . . . . . . . . . . Autooverride 1 | . . . . . . . . . . . . . . . . . . . . . . . . . . 1 . . . . . . . . . . . . Autoassimilate 1 | . . . . . . . . . . . . . . . . . . . . . . . . . . . . . . 1 . . . . . . . . Robots Hacked 125 | . . . . . . . . . . . . . . . . 1 1 8 7 11 1 . 3 3 18 8 1 1 5 13 3 12 5 14 . 5 4 1 Non-combat 32 | . . . . . . . . . . . . . . . . . 1 1 2 5 1 . 2 . 8 1 . . 2 2 1 . . 1 . 2 3 . Combat 93 | . . . . . . . . . . . . . . . . 1 . 7 5 6 . . 1 3 10 7 1 1 3 11 2 12 5 13 . 3 1 1 Autooverrided 16 | . . . . . . . . . . . . . . . . . . . . . . . . . . . . . . 3 . 4 2 7 . . . . Autoassimilated 8 | . . . . . . . . . . . . . . . . . . . . . . . . . . . . . . 1 1 1 . 2 . 3 . . Robot Hacks Applied 119 | . . . . . . . . . . . . . . . . 1 3 8 8 13 1 . 3 4 21 9 1 2 6 10 2 9 4 6 . 2 5 1 parse_system 15 | . . . . . . . . . . . . . . . . 1 . . 1 2 . . . 1 1 4 . 2 . 2 . 1 . . . . . . deconstruct_machine 1 | . . . . . . . . . . . . . . . . . . . . . . . . . 1 . . . . . . . . . . . . . map_walls 1 | . . . . . . . . . . . . . . . . . . . . . . . . . . . . . . . 1 . . . . . . . drop_inventory 6 | . . . . . . . . . . . . . . . . . . . . 1 . . . . 3 . . . . . . . . . . 2 . . find_recycling 1 | . . . . . . . . . . . . . . . . . . . . . . . . . 1 . . . . . . . . . . . . . ignore_parts 1 | . . . . . . . . . . . . . . . . . . . . 1 . . . . . . . . . . . . . . . . . . purge_threat 3 | . . . . . . . . . . . . . . . . . 3 . . . . . . . . . . . . . . . . . . . . . block_reporting 7 | . . . . . . . . . . . . . . . . . . . 1 1 . . 1 . 2 . . . . . . . . . . . 2 . map_route 2 | . . . . . . . . . . . . . . . . . . . . . . . . . . . . . 1 . . . . . . . 1 . find_shortcuts 1 | . . . . . . . . . . . . . . . . . . . . . . . . . . . . . . . . . 1 . . . . . find_garrison 4 | . . . . . . . . . . . . . . . . . . . . . . . . . 1 . . . 1 . 1 . 1 . . . . . link_fov 6 | . . . . . . . . . . . . . . . . . . 1 . 2 . . 1 . . . . . 2 . . . . . . . . . focus_fire 1 | . . . . . . . . . . . . . . . . . . . . 1 . . . . . . . . . . . . . . . . . . disrupt_area 2 | . . . . . . . . . . . . . . . . . . . . . . . . 1 . . . . . . . . . 1 . . . . amplify_resonance 12 | . . . . . . . . . . . . . . . . . . 3 . . . . . . 1 . . . . 1 . 2 1 2 . . 1 1 reboot_system 1 | . . . . . . . . . . . . . . . . . . . 1 . . . . . . . . . . . . . . . . . . . go_dormant 1 | . . . . . . . . . . . . . . . . . . . . . . . . . . . . . . . . 1 . . . . . . overwrite_iff 13 | . . . . . . . . . . . . . . . . . . . 1 1 . . . . 4 2 . . . 1 . 3 . 1 . . . . streamctrl_low 1 | . . . . . . . . . . . . . . . . . . . . . . . . . 1 . . . . . . . . . . . . . formatsys_low 7 | . . . . . . . . . . . . . . . . . . . . 1 . . . . 1 1 . . . 2 . . . 1 . . 1 . formatsys_high 33 | . . . . . . . . . . . . . . . . . . 4 4 3 1 . 1 2 5 2 1 . 2 4 . 2 1 1 . . . . Relay Couplers Released 93 | . . . . . . . . 4 . 12 . . . 8 . 7 . 3 2 . . . . 20 . 13 . 5 . 17 . . . . 2 . . . Machine Destruction 93 | . . . . . . . . 4 . 12 . . . 8 . 7 . 3 2 . . . . 20 . 13 . 5 . 17 . . . . 2 . . . Attached 38 | . . . . . . . . . 1 . 1 . . . . . 1 6 2 . . . 1 2 3 9 1 . . 6 1 2 . . 2 . . . Fabnet Peak Effective % . | . . . . . . . . . . . . . . . . . . . . . . . . . . . . . . . . . . . . . . . Robots Rewired 49 | . . . . . . . . 2 . 7 . . . . . 3 . . . 11 . . . 1 2 7 . 4 . 10 . . . 2 . . . . Allies Hacked 5 | . . . . . . . . . . . 2 . . . . 2 . . 1 . . . . . . . . . . . . . . . . . . . Hacks Repelled . | . . . . . . . . . . . . . . . . . . . . . . . . . . . . . . . . . . . . . . . Allies | -11 -10 -10 -9 -9 -9 -8 -8 -8 -8 -8 -7 -7 -7 -7 -7 -7 -6 -6 -6 -6 -6 -6 -6 -6 -5 -5 -5 -5 -5 -5 -5 -5 -4 -4 -3 -2 -2 -1 -------- Run | Yrd Mat Min Mat Min Exi Min Mat Gar Mat Gar Fac Was Fac Gar Fac Gar Fac Gar Fac Ext Cet Arc Hub Gar Fac Gar Fac Gar Fac Gar Fac Gar Fac Gar Res Res Qua Acc Total Allies 179 | . . 5 . . . . . 2 . 9 . 19 . . . 3 . 8 5 23 6 . 1 3 13 13 1 4 3 22 4 10 3 15 . 3 4 . Largest Group 19 | . . 5 5 . . . . 2 . 9 7 19 19 12 10 9 5 5 6 11 15 12 7 4 5 9 9 9 8 16 15 12 2 9 . 2 3 . Highest-Rated Group 866 | . . 85 85 . . . . 31 . 170 142 465 465 350 310 277 146 181 183 418 866 642 306 241 238 464 550 550 494 610 581 438 98 297 . 116 246 . Highest-Rated Ally 159 | . . 31 31 . . . . 16 . 31 31 35 35 35 35 39 39 62 90 159 159 96 96 90 85 116 142 148 148 148 49 49 56 68 . 58 82 . Total Orders 8 | . . . . . . . . . . . . . . . . . . 2 . . . 2 . . . 2 . 2 . . . . . . . . . . STAY 2 | . . . . . . . . . . . . . . . . . . 1 . . . 1 . . . . . . . . . . . . . . . . ROAM 1 | . . . . . . . . . . . . . . . . . . . . . . 1 . . . . . . . . . . . . . . . . FOLLOW 1 | . . . . . . . . . . . . . . . . . . 1 . . . . . . . . . . . . . . . . . . . . AID 4 | . . . . . . . . . . . . . . . . . . . . . . . . . . 2 . 2 . . . . . . . . . . Ally Attacks 1321 | . . 9 45 . . . . 14 . 44 31 12 83 54 28 63 8 45 38 136 58 23 35 53 82 20 25 69 42 103 70 81 16 29 . 5 . . Total Damage 34745 | . . 82 556 . . . . 244 . 896 513 112 1503 1762 578 1317 192 1198 1100 2921 1464 558 793 1864 2765 807 669 2618 1705 3176 1925 2309 516 465 . 137 . . Kills 251 | . . 2 8 . . . . 4 . 11 10 . 11 16 4 8 1 9 6 12 6 2 7 15 21 7 9 13 9 26 13 16 2 2 . 1 . . Allies Corrupted 6 | . . . . . . . . . . . . . 1 . . . . . . . . . 1 . 2 . . . . 1 . 1 . . . . . . Allies Melted 2 | . . . . . . . . . . . . . . . . . . . . . . . 1 . . . . . . 1 . . . . . . . . Intel | -11 -10 -10 -9 -9 -9 -8 -8 -8 -8 -8 -7 -7 -7 -7 -7 -7 -6 -6 -6 -6 -6 -6 -6 -6 -5 -5 -5 -5 -5 -5 -5 -5 -4 -4 -3 -2 -2 -1 ------- Run | Yrd Mat Min Mat Min Exi Min Mat Gar Mat Gar Fac Was Fac Gar Fac Gar Fac Gar Fac Ext Cet Arc Hub Gar Fac Gar Fac Gar Fac Gar Fac Gar Fac Gar Res Res Qua Acc Active Infowar (turns) 10959 | 39 1011 629 2077 356 306 776 1677 . . . . . . . . . . 2 38 . . . 454 168 694 806 200 24 . . . . . . 1127 258 211 106 Optics 2618 | . . . . . . . 1494 . . . . . . . . . . . . . . . . . . . . . . . . . . . 1124 . . . Sensors 480 | . . . . . . . . . . . . . . . . . . . . . . . . . . . . . . . . . . . . 170 211 99 Terrain 270 | . . . . . . . . . . . . . . . . . . . . . . . 269 1 . . . . . . . . . . . . . . Structural 2953 | . . . 1541 . . . . . . . . . . . . . . . . . . . . . . . . . . . . . . . 849 246 211 106 Seismic 5371 | 39 1011 629 2071 356 306 776 183 . . . . . . . . . . . . . . . . . . . . . . . . . . . . . . . T.N.C. 1444 | . . . . . . . . . . . . . . . . . . . . . . . . . 638 806 . . . . . . . . . . . . Cloaking 282 | . . . . . . . . . . . . . . . . . . . . . . . . . . . . . . . . . . . . . 196 86 Spoofing 1108 | . . . . . . . . . . . . . . . . . . 2 38 . . . 186 167 410 81 200 24 . . . . . . . . . . Robot Analysis Total 2 | . . . . . . . . . . . . . . . . . . . . 1 . . . . . . . . . . 1 . . . . . . . Derelict Logs Recovered 2 | . . 1 . 1 . . . . . . . . . . . . . . . . . . . . . . . . . . . . . . . . . . Drone Launches . | . . . . . . . . . . . . . . . . . . . . . . . . . . . . . . . . . . . . . . . Drone Recoveries . | . . . . . . . . . . . . . . . . . . . . . . . . . . . . . . . . . . . . . . . Exploration | -11 -10 -10 -9 -9 -9 -8 -8 -8 -8 -8 -7 -7 -7 -7 -7 -7 -6 -6 -6 -6 -6 -6 -6 -6 -5 -5 -5 -5 -5 -5 -5 -5 -4 -4 -3 -2 -2 -1 ------------- Run | Yrd Mat Min Mat Min Exi Min Mat Gar Mat Gar Fac Was Fac Gar Fac Gar Fac Gar Fac Ext Cet Arc Hub Gar Fac Gar Fac Gar Fac Gar Fac Gar Fac Gar Res Res Qua Acc Turns Passed 38216 | 130 1011 629 2077 356 1771 776 1931 790 2026 1905 1048 522 880 1712 521 1412 330 1482 855 1540 662 771 471 1594 1436 1594 312 852 393 1472 895 894 647 418 1387 258 211 245 Spaces Moved 18516 | 60 531 373 965 163 730 302 732 345 882 741 483 196 343 656 206 530 157 754 479 784 224 259 245 786 589 725 169 299 214 677 522 331 236 144 1146 505 403 630 Core 164 | 9 . . . . . . . . . . . 6 . . . . . . . . . . . . . . . . . . . . . 38 88 . . 23 Treads 15862 | 51 531 373 965 163 730 302 732 345 882 741 483 190 343 656 206 530 157 754 479 784 224 259 245 786 589 725 169 299 214 677 522 331 236 106 83 . . . Legs 608 | . . . . . . . . . . . . . . . . . . . . . . . . . . . . . . . . . . . 608 . . . Wheels . | . . . . . . . . . . . . . . . . . . . . . . . . . . . . . . . . . . . . . . . Hover 118 | . . . . . . . . . . . . . . . . . . . . . . . . . . . . . . . . . . . 118 . . . Flight 1764 | . . . . . . . . . . . . . . . . . . . . . . . . . . . . . . . . . . . 249 505 403 607 Fastest Speed 27 | 50 160 160 160 200 200 225 185 192 192 200 200 160 240 160 240 240 160 160 160 160 160 160 160 160 160 160 160 160 160 152 152 152 212 50 35 32 32 27 Average Speed 167 | 143 160 160 178 200 214 225 215 192 212 203 200 220 240 240 240 240 162 160 160 160 160 160 160 163 163 160 160 160 160 155 152 215 224 187 92 32 32 32 Slowest Speed 320 | 160 160 160 200 200 225 225 225 192 225 205 220 250 240 320 240 240 240 160 160 160 160 160 160 165 240 245 160 160 160 160 237 232 237 250 190 107 32 50 Overloaded Moves 35 | . . . . . . . . . . . . . . . . . . . . . . . . . . . . . . . . . . . 14 . . 21 Propulsion Burnouts . | . . . . . . . . . . . . . . . . . . . . . . . . . . . . . . . . . . . . . . . Robots Hopped 9 | . . . . . . . . . . . . . . 1 . . . . . . . . . . . . . . . . . . . . 1 . 1 6 Potential Cave-ins . | . . . . . . . . . . . . . . . . . . . . . . . . . . . . . . . . . . . . . . . Cave-ins Triggered . | . . . . . . . . . . . . . . . . . . . . . . . . . . . . . . . . . . . . . . . Teleports 2 | . . . . . . . . . . . . . . . . . . . . . . . . . . . . . . . . . . . . . . 2 Exploration Rate (%) 49 | 4 75 88 80 29 69 58 61 49 68 91 17 85 10 94 8 65 6 95 12 85 71 83 36 88 17 86 9 34 9 97 18 43 11 39 28 25 46 23 Regions Visited 38 Branch Regions 9 Pre-discovered Areas 6 | . . . 2 . . . . . 4 . . . . . . . . . . . . . . . . . . . . . . . . . . . . . Known Exits Taken 17 | . . . 1 . . 1 1 . 1 . . . 1 . 1 . 1 . 1 1 . . 1 . 1 . 1 . 1 . 1 . 1 . . 1 1 . Unknown Exits Taken 8 | 1 1 1 . 1 1 . . . . . . . . . . . . . . . 1 1 . . . . . . . . . . . . 1 . . . Scrap Searched 2 | . . . . 1 . 1 . . . . . . . . . . . . . . . . . . . . . . . . . . . . . . . . Spaces Dug 50 | . . . . . 6 . 9 . . . . . . . . . . 2 1 . . . . . 1 . . . . 6 . . 3 7 . 8 4 3 Terrain Destroyed 914 | . . . . . 28 . 18 . . 16 3 55 2 . 8 74 10 30 15 . 28 26 338 5 34 13 3 . 3 53 7 51 39 21 19 8 4 3 Melee 15 | . . . . . . . . . . . . . . . . . . . . . . . . . . . . . . . . . . . . 8 4 3 Projectile 260 | . . . . . . . . . . 16 3 5 2 . 8 6 10 30 1 . 28 26 14 5 29 13 3 . 3 28 7 8 7 8 . . . . AOE 639 | . . . . . 28 . 18 . . . . 50 . . . 68 . . 14 . . . 324 . 5 . . . . 25 . 43 32 13 19 . . . Terrain Rammed . | . . . . . . . . . . . . . . . . . . . . . . . . . . . . . . . . . . . . . . . Walls Destroyed . | . . . . . . . . . . . . . . . . . . . . . . . . . . . . . . . . . . . . . . . Machines Disabled . | . . . . . . . . . . . . . . . . . . . . . . . . . . . . . . . . . . . . . . . Actions | -11 -10 -10 -9 -9 -9 -8 -8 -8 -8 -8 -7 -7 -7 -7 -7 -7 -6 -6 -6 -6 -6 -6 -6 -6 -5 -5 -5 -5 -5 -5 -5 -5 -4 -4 -3 -2 -2 -1 --------- Run | Yrd Mat Min Mat Min Exi Min Mat Gar Mat Gar Fac Was Fac Gar Fac Gar Fac Gar Fac Ext Cet Arc Hub Gar Fac Gar Fac Gar Fac Gar Fac Gar Fac Gar Res Res Qua Acc Total 23676 | 88 611 393 1179 180 863 354 986 429 990 983 536 262 399 795 234 656 210 933 547 996 470 557 287 1002 926 1027 198 644 260 961 599 482 330 249 1385 559 464 652 Wait 2136 | . 17 14 21 11 31 23 133 14 43 55 6 18 46 35 8 23 9 51 17 123 153 248 10 65 137 122 18 250 34 108 46 98 70 27 28 1 19 4 Move 18469 | 59 530 372 964 162 729 301 732 344 882 740 483 195 343 653 206 529 157 753 478 783 223 258 244 785 589 724 169 298 213 676 521 330 236 143 1143 504 400 618 Hop 9 | . . . . . . . . . . . . . . 1 . . . . . . . . . . . . . . . . . . . . 1 . 1 6 Pick Up 428 | 13 10 . 40 . 19 2 23 4 8 13 7 12 1 26 1 9 6 25 8 7 16 6 2 28 29 19 1 8 . 12 5 4 2 9 36 7 9 1 Fast Attach 151 | . . . 7 . 1 . 7 . 2 2 3 3 . 4 1 10 . 3 3 1 5 5 . 7 7 16 . 4 . 8 . 5 . . 25 10 4 8 Attach 211 | 7 . . 5 . 7 3 5 . 1 3 4 5 . 2 2 3 10 12 7 4 13 . 5 12 21 4 . 4 . 6 2 5 3 11 36 5 1 3 Detach 38 | . . . . . . . . . 1 . . . . . 2 1 4 2 . 1 7 . . 2 4 2 . 1 . . . . . 3 5 2 . 1 Swap 183 | . 4 . 22 . 15 . 12 11 5 10 5 . . . . . 1 7 1 3 1 4 3 14 9 14 3 4 2 11 6 7 1 . 5 3 . . Drop 437 | . 4 . 41 . 16 . 28 4 14 14 11 10 . 12 2 17 10 22 8 5 15 9 3 30 18 34 1 11 2 20 7 6 . 5 34 8 12 4 Fire 1458 | 9 46 7 79 7 45 25 46 30 34 136 17 19 9 56 12 56 13 58 24 68 37 27 20 59 111 91 6 21 9 120 12 27 18 40 52 3 7 2 Melee 52 | . . . . . . . . . . . . . . . . . . . . . . . . . . . . . . . . . . . 20 16 11 5 Ram . | . . . . . . . . . . . . . . . . . . . . . . . . . . . . . . . . . . . . . . . Kick . | . . . . . . . . . . . . . . . . . . . . . . . . . . . . . . . . . . . . . . . Crush . | . . . . . . . . . . . . . . . . . . . . . . . . . . . . . . . . . . . . . . . Escape Stasis 39 | . . . . . . . . 4 . 10 . . . 6 . 8 . . . . . . . . . . . . . . . . . 11 . . . . Rewire 65 | . . . . . . . . 18 . . . . . . . . . . 1 1 . . . . 1 1 . 43 . . . . . . . . . . Trap . | . . . . . . . . . . . . . . . . . . . . . . . . . . . . . . . . . . . . . . . Miscellaneous . | . . . . . . . . . . . . . . . . . . . . . . . . . . . . . . . . . . . . . . . Route ------- -11/Scrapyard -10/Materials (discovered 4 exits: *Mat x3 / [*Min]) -10/Mines (discovered 2 exits: *Mat x2) -9/Materials (discovered 5 exits: *Mat x3 / *Min x2) -9/Mines -9/Exiles -8/Mines (discovered 2 exits: *Mat x2) -8/Materials (discovered 4 exits: *Fac x3 / Gar) -8/Garrison (discovered 3 exits: *Mat x3) -8/Materials (discovered 4 exits: *Fac x3 / Gar) -8/Garrison (discovered 3 exits: *Fac x3) -7/Factory (discovered 3 exits: *Fac / [*Sto] / *Low) -7/Waste -7/Factory (discovered 2 exits: *Low / Gar) -7/Garrison (discovered 3 exits: *Fac x3) -7/Factory -7/Garrison (discovered 3 exits: *Fac x3) -6/Factory (discovered 4 exits: *Low / Ext x2 / Gar) -6/Garrison (discovered 3 exits: *Fac x3) -6/Factory (discovered 4 exits: Low x2 / *Ext x2) -6/Extension (discovered 3 exits: *Fac x2 / *Cet) -6/Cetus (discovered 2 exits: *Fac / *Arc) -6/Archives (discovered 3 exits: *Fac / *Hub x2) -6/Hub_04(d) (discovered 5 exits: *Fac x4 / Gar) -6/Garrison (discovered 3 exits: *Fac x3) -5/Factory (discovered 3 exits: *Upp x2 / Gar) -5/Garrison (discovered 3 exits: *Fac x3) -5/Factory (discovered 2 exits: *Fac / Gar) -5/Garrison -5/Factory -5/Garrison (discovered 4 exits: *Fac x3 / *Fac) -5/Factory (discovered 3 exits: Upp x2 / Gar) -5/Garrison -4/Factory -4/Garrison -3/Research -2/Research -2/Quarantine (discovered 2 exits: *Acc / Gar) -1/Access History --------- Turn | Location | Event 6 | -11/Scrapyard | Discovered new exit (range 14) 131 | -11/Scrapyard | Entered Materials 277 | -10/Materials | Discovered new exit (range 15) 303 | -10/Materials | Build established: Mutant 494 | -10/Materials | Discovered new exit (range 15) 834 | -10/Materials | Discovered new exit (range 14) 1009 | -10/Materials | Discovered new exit (range 10) 1142 | -10/Materials | Entered Mines 1148 | -10/Mines | Met a Derelict bent on vengeance 1205 | -10/Mines | Learned Materials stockpile data 1338 | -10/Mines | Discovered new exit (range 9) 1438 | -10/Mines | Assisted by bots powering up and referring to "LRC-V3" 1608 | -10/Mines | Discovered new exit (range 7) 1771 | -10/Mines | Entered Materials 1771 | -9/Materials | Accompanied by 5 allies 1771 | -9/Materials | Evolved 2 slots: Utility x2 1776 | -9/Materials | Led the pair of lost Derelicts to an unsafe place 1804 | -9/Materials | Central database locked down 2137 | -9/Materials | Discovered new exit (range 8) 2234 | -9/Materials | Lost 4 allies 2533 | -9/Materials | Build established: Scavenger-Mutant 3172 | -9/Materials | Discovered new exit (range 10) 3247 | -9/Materials | Discovered new exit (range 17) 3278 | -9/Materials | Learned location of 1 exit from Recycling 3356 | -9/Materials | Identified exit to Materials 3425 | -9/Materials | Learned location of Zion (-6) 3529 | -9/Materials | Learned Storage trap positions 3583 | -9/Materials | Learned location of Mines (-9) 3649 | -9/Materials | Learned Storage garrison access intel 3703 | -9/Materials | Identified exit to Mines 3848 | -9/Materials | Entered Mines 3882 | -9/Mines | Deemed a non-threat by the Exiles lab entrance 3882 | -9/Mines | Discovered new exit (range 5) 3930 | -9/Mines | Learned Materials interactive machine intel 4204 | -9/Mines | Entered Exiles 4252 | -9/Exiles | Met 8R-AWN 4286 | -9/Exiles | Met EX-HEX 4376 | -9/Exiles | Met EX-DEC 4466 | -9/Exiles | Discovered new exit (range 10) 4700 | -9/Exiles | Met EX-BIN 4728 | -9/Exiles | Aligned with FarCom system 4730 | -9/Exiles | Given EX-Vault access code 4776 | -9/Exiles | Opened EX-Vault 4792 | -9/Exiles | Found 0b10 Alert Chip 4803 | -9/Exiles | Found YOLO Cannon 4815 | -9/Exiles | Found XL Autogun Array 4856 | -9/Exiles | Warned to stay clear of 0b10 Research branches 5119 | -9/Exiles | Build established: Mutant 5500 | -9/Exiles | Attacked by the Exiles 5596 | -9/Exiles | Core integrity fell below 50% 5681 | -9/Exiles | Destroyed 8R-AWN 5701 | -9/Exiles | Found Prototype Ballistic Gun 5702 | -9/Exiles | Identified 8R-AWN's Boregun 5704 | -9/Exiles | Lost 7 parts (1p1n3u2w) 5975 | -9/Exiles | Stole three prototypes: 0b10 Alert Chip, YOLO Cannon, XL Autogun Array 5975 | -9/Exiles | Entered Mines 6137 | -8/Mines | Discovered exit to Materials (range 15) 6226 | -8/Mines | Discovered exit to Materials (range 5) 6337 | -8/Mines | Core integrity fell below 20% 6751 | -8/Mines | Entered Materials 6751 | -8/Materials | Evolved 2 slots: Weapon x2 6752 | -8/Materials | Loaded intel: 19 interactive machine locations 7318 | -8/Materials | Build established: Scavenger-Tank 7433 | -8/Materials | Identified exit to Factory 7529 | -8/Materials | Learned Storage trap positions 7596 | -8/Materials | Learned Factory stockpile data 8244 | -8/Materials | Build established: Gunner 8316 | -8/Materials | Central database locked down 8682 | -8/Materials | Identified exit to Garrison 8682 | -8/Materials | Entered Garrison 8874 | -8/Garrison | Triggered checkpoint 8907 | -8/Garrison | Installed Relay Interface Framework 9048 | -8/Garrison | Triggered checkpoint 9048 | -8/Garrison | Triggered checkpoint 9195 | -8/Garrison | Discovered new exit (range 12) 9206 | -8/Garrison | Discovered new exit (range 13) 9206 | -8/Garrison | Discovered new exit (range 82) 9206 | -8/Garrison | Discovered new exit (range 103) 9278 | -8/Garrison | Expanded RIF knowledge: Signal Jamming 9393 | -8/Garrison | Garrison Relay disabled 9436 | -8/Garrison | Triggered checkpoint 9472 | -8/Garrison | Entered Materials 10457 | -8/Materials | Central database locked down 10467 | -8/Materials | Discovered exit to Factory (range 16) 10986 | -8/Materials | Learned location of Extension (-6) 11011 | -8/Materials | Learned location of 1 exit from Lower Caves 11035 | -8/Materials | Learned 4 Recycling zone layouts 11498 | -8/Materials | Identified exit to Garrison 11498 | -8/Materials | Entered Garrison 11595 | -8/Garrison | Expanded RIF knowledge: Program Shield 12262 | -8/Garrison | Triggered checkpoint 12399 | -8/Garrison | Discovered exit to Factory (range 11) 12442 | -8/Garrison | Triggered checkpoint 12553 | -8/Garrison | Garrison Relay disabled 12566 | -8/Garrison | Garrison Relay disabled 12685 | -8/Garrison | Rescued a captive Derelict 12686 | -8/Garrison | Rescued a captive Derelict 12906 | -8/Garrison | Triggered checkpoint 12907 | -8/Garrison | Triggered checkpoint 12922 | -8/Garrison | Build established: Commander-Gunner 13009 | -8/Garrison | Discovered exit to Factory (range 9) 13140 | -8/Garrison | Triggered checkpoint 13222 | -8/Garrison | Discovered exit to Factory (range 10) 13246 | -8/Garrison | Triggered checkpoint 13272 | -8/Garrison | Garrison Relay disabled 13403 | -8/Garrison | Entered Factory 13403 | -7/Factory | Accompanied by 7 allies 13403 | -7/Factory | Evolved 2 slots: Utility x2 13404 | -7/Factory | Identified exit to Lower Caves 13881 | -7/Factory | Discovered new exit (range 15) 13989 | -7/Factory | Discovered new exit (range 15) 14072 | -7/Factory | Lost 4 allies 14203 | -7/Factory | First assault squad dispatched 14311 | -7/Factory | Build established: Gunner 14402 | -7/Factory | Assembled infested ambush trap array 14451 | -7/Factory | Sucked down chute 14451 | -7/Factory | Entered Waste 14488 | -7/Waste | Spotted C-40 Crusher 14489 | -7/Waste | Spotted C-40 Crusher 14495 | -7/Waste | Destroyed C-40 Crusher 14516 | -7/Waste | Spotted C-40 Crusher 14516 | -7/Waste | Spotted C-40 Crusher 14524 | -7/Waste | Crushed by Compactor (1 part destroyed, 1 dropped) 14524 | -7/Waste | Destroyed C-40 Crusher 14528 | -7/Waste | Destroyed C-40 Crusher 14534 | -7/Waste | Crushed by Compactor (0 parts destroyed, 2 dropped) 14536 | -7/Waste | YOLO Cannon suddenly exploded 14537 | -7/Waste | Core integrity fell below 50% 14537 | -7/Waste | Crushed by Compactor (1 part destroyed, 1 dropped) 14541 | -7/Waste | Destroyed C-40 Crusher 14568 | -7/Waste | Lost 6 parts (1p1n2u2w) 14610 | -7/Waste | Spotted C-40 Crusher 14617 | -7/Waste | Destroyed C-40 Crusher 14635 | -7/Waste | Found Damper Plating 14669 | -7/Waste | Warlord forces began an assault 14671 | -7/Waste | Spotted C-40 Crusher 14676 | -7/Waste | Destroyed C-40 Crusher 14757 | -7/Waste | Found Damper Plating 14838 | -7/Waste | Build established: Tank 14895 | -7/Waste | Discovered new exit (range 12) 14973 | -7/Waste | Entered Factory 14973 | -7/Factory | Accompanied by 19 allies 15180 | -7/Factory | Lost 5 allies 15208 | -7/Factory | Discovered exit to Lower Caves (range 11) 15831 | -7/Factory | Garrison activated, responded to threat 15836 | -7/Factory | Identified exit to Garrison 15853 | -7/Factory | Entered Garrison 15853 | -7/Garrison | Accompanied by 12 allies 15921 | -7/Garrison | Triggered checkpoint 15964 | -7/Garrison | Expanded RIF knowledge: Coupler Efficiency 15993 | -7/Garrison | Garrison Relay disabled 16013 | -7/Garrison | Triggered checkpoint 16163 | -7/Garrison | Triggered checkpoint 16200 | -7/Garrison | Triggered checkpoint 16387 | -7/Garrison | Triggered checkpoint 16498 | -7/Garrison | Discovered new exit (range 15) 16665 | -7/Garrison | Triggered checkpoint 16723 | -7/Garrison | Triggered checkpoint 16907 | -7/Garrison | Discovered new exit (range 13) 17005 | -7/Garrison | Triggered checkpoint 17039 | -7/Garrison | Build established: Hauler-Tank 17203 | -7/Garrison | Discovered new exit (range 12) 17257 | -7/Garrison | Triggered checkpoint 17285 | -7/Garrison | Garrison Relay disabled 17565 | -7/Garrison | Entered Factory 17565 | -7/Factory | Accompanied by 10 allies 17930 | -7/Factory | Lost 3 allies 17965 | -7/Factory | First assault squad dispatched 18009 | -7/Factory | Garrison activated, responded to threat 18078 | -7/Factory | Identified exit to Garrison 18086 | -7/Factory | Entered Garrison 18086 | -7/Garrison | Accompanied by 7 allies 18126 | -7/Garrison | Triggered checkpoint 18135 | -7/Garrison | Garrison Relay disabled 18399 | -7/Garrison | Phase Generator disabled 18638 | -7/Garrison | Triggered checkpoint 18676 | -7/Garrison | Triggered checkpoint 18720 | -7/Garrison | Build established: Bothacker-Tank 18840 | -7/Garrison | Expanded RIF knowledge: Command Fork 18885 | -7/Garrison | Discovered new exit (range 13) 19067 | -7/Garrison | P-70 Sage assimilated allied 0O-XVH(g) 19069 | -7/Garrison | P-70 Sage assimilated allied QI-IJL(g) 19157 | -7/Garrison | Expanded RIF knowledge: Threat Obfuscation 19262 | -7/Garrison | Triggered checkpoint 19344 | -7/Garrison | Discovered new exit (range 20) 19344 | -7/Garrison | Discovered new exit (range 62) 19344 | -7/Garrison | Discovered new exit (range 56) 19407 | -7/Garrison | Garrison Relay disabled 19498 | -7/Garrison | Entered Factory 19498 | -6/Factory | Accompanied by 5 allies 19498 | -6/Factory | Evolved 2 slots: Propulsion x2 19499 | -6/Factory | Identified exit to Extension 19689 | -6/Factory | Discovered new exit (range 14) 19798 | -6/Factory | Build established: Botlord-Gunner 19828 | -6/Factory | Identified exit to Garrison 19828 | -6/Factory | Entered Garrison 19828 | -6/Garrison | Accompanied by 2 allies 19839 | -6/Garrison | Phase Generator disabled 19854 | -6/Garrison | Met a derelict Sapper fleeing the area 19858 | -6/Garrison | Found embedded Infiltrators 19869 | -6/Garrison | Triggered checkpoint 19903 | -6/Garrison | Learned Factory security intel 20018 | -6/Garrison | Lost 3 allies 20075 | -6/Garrison | Garrison Relay disabled 20220 | -6/Garrison | Triggered checkpoint 20233 | -6/Garrison | Build established: Botlord-Tank 20364 | -6/Garrison | Rescued a captive Derelict 20395 | -6/Garrison | Discovered new exit (range 10) 20492 | -6/Garrison | Triggered checkpoint 20618 | -6/Garrison | Discovered new exit (range 14) 20720 | -6/Garrison | Expanded RIF knowledge: Hotswap 20896 | -6/Garrison | Triggered checkpoint 20990 | -6/Garrison | Triggered checkpoint 21048 | -6/Garrison | Discovered new exit (range 11) 21310 | -6/Garrison | Entered Factory 21310 | -6/Factory | Accompanied by 4 allies 21453 | -6/Factory | Identified exit to Lower Caves 21470 | -6/Factory | Garrison activated, responded to threat 21888 | -6/Factory | Lost 3 allies 22165 | -6/Factory | Entered Extension 22165 | -6/Extension | Accompanied by 1 ally 22731 | -6/Extension | Identified exit to Factory 22731 | -6/Extension | Identified exit to Cetus 22836 | -6/Extension | Learned Hub_04(d) emergency access door positions 22876 | -6/Extension | Learned location of 1 exit from Lower Caves 22905 | -6/Extension | Learned location of 2 exits from Proximity Caves 22950 | -6/Extension | Learned location of 2 exits from Proximity Caves 22986 | -6/Extension | Learned Factory terminal intel 23031 | -6/Extension | Learned location of 2 exits from Lower Caves 23118 | -6/Extension | Spotted B-75 Beast 23135 | -6/Extension | Spotted B-75 Beast 23136 | -6/Extension | Destroyed B-75 Beast 23150 | -6/Extension | Destroyed B-75 Beast 23203 | -6/Extension | Lost 4 allies 23310 | -6/Extension | Rescued a captive Derelict 23499 | -6/Extension | Rescued a captive Derelict 23501 | -6/Extension | Rescued a captive Derelict 23571 | -6/Extension | Rescued A7 23598 | -6/Extension | Rescued a captive Derelict 23631 | -6/Extension | Rescued a captive Derelict 23705 | -6/Extension | Entered Cetus 23705 | -6/Cetus | Accompanied by 11 allies (A7) 23710 | -6/Cetus | Acquired a Cetus Manufacturing Module code from A7 23726 | -6/Cetus | Spotted Cetus Guard 23726 | -6/Cetus | Spotted Cetus Guard 23731 | -6/Cetus | Spotted Cetus Guard 23735 | -6/Cetus | Allies destroyed Cetus Guard 23735 | -6/Cetus | Spotted Cetus Guard 23736 | -6/Cetus | Destroyed Cetus Guard 23750 | -6/Cetus | Allies destroyed Cetus Guard 23752 | -6/Cetus | Allies destroyed Cetus Guard 23774 | -6/Cetus | Lost 3 parts (1p2w) 23798 | -6/Cetus | System corruption reached 10% 23840 | -6/Cetus | Started Cetus Manufacturing Module 23862 | -6/Cetus | Escorted A7 to Cetus Mainframe 23865 | -6/Cetus | Manufactured an Enhanced Grunt 23890 | -6/Cetus | Manufactured an Enhanced Grunt 23915 | -6/Cetus | Manufactured an Enhanced Grunt 23940 | -6/Cetus | Manufactured an Enhanced Grunt 23965 | -6/Cetus | Manufactured an Enhanced Grunt 23995 | -6/Cetus | Discovered new exit (range 15) 24025 | -6/Cetus | Spotted Cetus Guard 24025 | -6/Cetus | Spotted Cetus Guard 24032 | -6/Cetus | Allies destroyed Cetus Guard 24032 | -6/Cetus | Spotted Cetus Guard 24033 | -6/Cetus | Destroyed Cetus Guard 24033 | -6/Cetus | Spotted Cetus Guard 24042 | -6/Cetus | Allies destroyed Cetus Guard 24042 | -6/Cetus | Destroyed Cetus Guard 24052 | -6/Cetus | Discovered exit to Factory (range 15) 24060 | -6/Cetus | Met Revision 17 24319 | -6/Cetus | Murdered A7 24323 | -6/Cetus | Extracted ID and sensor layout for unrecognized location from A7's data core 24333 | -6/Cetus | Found Prototype Protection 24333 | -6/Cetus | Identified Med. Regenerative Plating 24367 | -6/Cetus | Entered Archives 24367 | -6/Archives | Accompanied by 12 allies 24406 | -6/Archives | Found Prototype Device 24406 | -6/Archives | Identified Exp. Thermal Shield 24428 | -6/Archives | Lost 4 allies 24455 | -6/Archives | Discovered new exit (range 16) 24465 | -6/Archives | Unable to access archive contents 24465 | -6/Archives | Unable to access archive contents 24622 | -6/Archives | Discovered new exit (range 16) 24635 | -6/Archives | Discovered exit to Factory (range 16) 25138 | -6/Archives | Entered Hub_04(d) 25138 | -6/Hub_04(d) | Accompanied by 7 allies 25306 | -6/Hub_04(d) | Spotted B-75 Beast 25320 | -6/Hub_04(d) | Destroyed B-75 Beast 25420 | -6/Hub_04(d) | Core integrity fell below 50% 25550 | -6/Hub_04(d) | Network Hub disabled 25556 | -6/Hub_04(d) | Network Hub disabled 25600 | -6/Hub_04(d) | Identified exit to Garrison 25609 | -6/Hub_04(d) | Entered Garrison 25609 | -6/Garrison | Accompanied by 1 ally 25632 | -6/Garrison | Spotted B-75 Beast 25633 | -6/Garrison | Rewired B-75 Beast 25638 | -6/Garrison | Destroyed B-75 Beast 25933 | -6/Garrison | Triggered checkpoint 25973 | -6/Garrison | Triggered checkpoint 25977 | -6/Garrison | Triggered checkpoint 26018 | -6/Garrison | Garrison Relay disabled 26097 | -6/Garrison | Discovered exit to Factory (range 14) 26329 | -6/Garrison | Discovered exit to Factory (range 12) 26343 | -6/Garrison | Expanded RIF knowledge: Patrol Navigation 26371 | -6/Garrison | Triggered checkpoint 26407 | -6/Garrison | Expanded RIF knowledge: Threat Obfuscation 26478 | -6/Garrison | Garrison Relay disabled 26625 | -6/Garrison | Triggered checkpoint 26699 | -6/Garrison | Triggered checkpoint 26699 | -6/Garrison | Garrison Relay disabled 26702 | -6/Garrison | Garrison Relay disabled 26776 | -6/Garrison | Garrison Relay disabled 26812 | -6/Garrison | Discovered exit to Factory (range 9) 27016 | -6/Garrison | Found Relay Coupler [Proto] 27018 | -6/Garrison | Found Relay Coupler [Proto] 27197 | -6/Garrison | System corruption reached 30% 27203 | -6/Garrison | Entered Factory 27203 | -5/Factory | Accompanied by 2 allies 27203 | -5/Factory | Evolved 2 slots: Utility x2 27204 | -5/Factory | Loaded intel: 26 terminal locations 27227 | -5/Factory | Discovered new exit (range 12) 27724 | -5/Factory | Found Mni. Smartbomb Launcher 27771 | -5/Factory | Lost 4 allies 27797 | -5/Factory | Discovered new exit (range 5) 28034 | -5/Factory | Cargo convoy interrupted 28109 | -5/Factory | Found PL-3XN's Ring of Power 28127 | -5/Factory | Lost 12 parts (1p2n3u6w) 28639 | -5/Factory | Identified exit to Garrison 28639 | -5/Factory | Entered Garrison 28659 | -5/Garrison | Expanded RIF knowledge: Autooverride 28710 | -5/Garrison | Spotted B-75 Beast 28728 | -5/Garrison | Destroyed B-75 Beast 28932 | -5/Garrison | System corruption reached 10% 28977 | -5/Garrison | Spotted B-75 Beast 28996 | -5/Garrison | Core integrity fell below 50% 28998 | -5/Garrison | Destroyed B-75 Beast 29069 | -5/Garrison | Triggered checkpoint 29155 | -5/Garrison | Triggered checkpoint 29159 | -5/Garrison | Garrison Relay disabled 29218 | -5/Garrison | Discovered new exit (range 12) 29321 | -5/Garrison | Triggered checkpoint 29475 | -5/Garrison | Triggered checkpoint 29520 | -5/Garrison | Garrison Relay disabled 29602 | -5/Garrison | Discovered new exit (range 8) 29727 | -5/Garrison | Triggered checkpoint 29775 | -5/Garrison | Triggered checkpoint 29979 | -5/Garrison | Garrison Relay disabled 30048 | -5/Garrison | Discovered new exit (range 8) 30066 | -5/Garrison | Spotted B-75 Beast 30075 | -5/Garrison | Rewired B-86 Titan 30076 | -5/Garrison | Spotted B-75 Beast 30085 | -5/Garrison | Destroyed B-75 Beast 30092 | -5/Garrison | Rewired B-75 Beast 30096 | -5/Garrison | Allies destroyed B-75 Beast 30233 | -5/Garrison | Entered Factory 30233 | -5/Factory | Accompanied by 9 allies 30280 | -5/Factory | Discovered new exit (range 15) 30530 | -5/Factory | Identified exit to Garrison 30545 | -5/Factory | Entered Garrison 30545 | -5/Garrison | Accompanied by 9 allies 30549 | -5/Garrison | Spotted B-86 Titan 30558 | -5/Garrison | Allies destroyed B-86 Titan 30574 | -5/Garrison | Rewired B-90 Cyclops 30611 | -5/Garrison | Triggered checkpoint 30616 | -5/Garrison | Expanded RIF knowledge: Structural Interface 30667 | -5/Garrison | Garrison Relay disabled 31117 | -5/Garrison | Triggered checkpoint 31155 | -5/Garrison | Discovered new exit (range 3) 31397 | -5/Garrison | Entered Factory 31397 | -5/Factory | Accompanied by 8 allies 31554 | -5/Factory | Unchained authorized (QV-33N) 31666 | -5/Factory | Lost 7 allies 31739 | -5/Factory | Identified exit to Garrison 31790 | -5/Factory | Entered Garrison 31790 | -5/Garrison | Accompanied by 3 allies 31824 | -5/Garrison | Expanded RIF knowledge: Autoassimilate 31928 | -5/Garrison | Triggered checkpoint 31958 | -5/Garrison | Garrison Relay disabled 32061 | -5/Garrison | Spotted B-75 Beast 32086 | -5/Garrison | Destroyed B-75 Beast 32139 | -5/Garrison | Destroyed 8 combat bots 32164 | -5/Garrison | Triggered checkpoint 32406 | -5/Garrison | Found Quantum Capacitor 32412 | -5/Garrison | Discovered new exit (range 15) 32666 | -5/Garrison | Triggered checkpoint 32671 | -5/Garrison | Garrison Relay disabled 32712 | -5/Garrison | Triggered checkpoint 32849 | -5/Garrison | Discovered new exit (range 10) 32866 | -5/Garrison | Triggered checkpoint 32886 | -5/Garrison | Garrison Relay disabled 32942 | -5/Garrison | Triggered checkpoint 33045 | -5/Garrison | Garrison Relay disabled 33058 | -5/Garrison | Triggered checkpoint 33108 | -5/Garrison | Discovered new exit (range 9) 33138 | -5/Garrison | Triggered checkpoint 33148 | -5/Garrison | Discovered new exit (range 5) 33262 | -5/Garrison | Entered Factory 33262 | -5/Factory | Accompanied by 15 allies 33483 | -5/Factory | Identified exit to Upper Caves 33965 | -5/Factory | Fabricated G-50 Soldier (x3) 34017 | -5/Factory | Cargo convoy interrupted 34079 | -5/Factory | Found Imp. Powered Armor 34091 | -5/Factory | Identified exit to Garrison 34157 | -5/Factory | Entered Garrison 34157 | -5/Garrison | Accompanied by 12 allies 34207 | -5/Garrison | Core integrity fell below 20% 34209 | -5/Garrison | Triggered checkpoint 34432 | -5/Garrison | Lost 4 allies 34542 | -5/Garrison | Lost 5 allies 34666 | -5/Garrison | Spotted B-75 Beast 34716 | -5/Garrison | Allies destroyed B-75 Beast 34749 | -5/Garrison | Triggered checkpoint 34753 | -5/Garrison | Triggered checkpoint 34804 | -5/Garrison | Lost 5 allies 34853 | -5/Garrison | Expanded RIF knowledge: Threat Obfuscation 34913 | -5/Garrison | Triggered checkpoint 34961 | -5/Garrison | Discovered new exit (range 14) 35051 | -5/Garrison | Entered Factory 35051 | -4/Factory | Evolved 2 slots: Power x1, Utility x1 35225 | -4/Factory | Repaired Adv. Heavy Siege Treads 35282 | -4/Factory | Central database locked down 35696 | -4/Factory | Identified exit to Garrison 35698 | -4/Factory | Entered Garrison 35716 | -4/Garrison | Triggered checkpoint 35975 | -4/Garrison | Spotted B-86 Titan 35982 | -4/Garrison | Triggered checkpoint 35984 | -4/Garrison | Triggered checkpoint 36031 | -4/Garrison | Destroyed B-86 Titan 36042 | -4/Garrison | Lost 11 allies 36072 | -4/Garrison | Destroyed 7 combat bots 36080 | -4/Garrison | Core integrity fell below 50% 36112 | -4/Garrison | Discovered new exit (range 8) 36113 | -4/Garrison | Lost 23 parts (4p3n8u8w) 36113 | -4/Garrison | Core integrity fell below 20% 36116 | -4/Garrison | Entered Research 36116 | -3/Research | Evolved 2 slots: Propulsion x2 36129 | -3/Research | Identified exit to DSF 36316 | -3/Research | Revision forces began assault on 0b10 36346 | -3/Research | Met up with Revision 17++ 36397 | -3/Research | Build established: Mutant 36649 | -3/Research | Lost 3 parts (1p1u1w) 36736 | -3/Research | Spotted B-86 Titan 36789 | -3/Research | Lost 3 parts (1n1u1w) 36816 | -3/Research | Research terminal network offline 36897 | -3/Research | Build established: Scavenger-Mutant 37044 | -3/Research | Spotted Executioner 37048 | -3/Research | Spotted Striker 37076 | -3/Research | Destroyed Executioner 37094 | -3/Research | Lost 3 allies 37199 | -3/Research | Discovered new exit (range 20) 37300 | -3/Research | Found Prototype Processor 37300 | -3/Research | Identified Spectral Analyzer 37349 | -3/Research | Spotted Striker 37359 | -3/Research | Spotted Striker 37409 | -3/Research | Lost 4 allies 37411 | -3/Research | Destroyed Striker 37482 | -3/Research | Lost 3 parts (1u2w) 37483 | -3/Research | Spotted Striker 37503 | -3/Research | Entered another Research area 37503 | -2/Research | Evolved 2 slots: Propulsion x2 37620 | -2/Research | Spotted B-90 Cyclops 37628 | -2/Research | Spotted B-90 Cyclops 37693 | -2/Research | Spotted B-90 Cyclops 37759 | -2/Research | Discovered new exit (range 9) 37761 | -2/Research | Identified exit to Quarantine 37761 | -2/Research | Entered Quarantine 37771 | -2/Quarantine | Found Alien Artifact 37800 | -2/Quarantine | Cryocooling Duct disabled 37815 | -2/Quarantine | Ambient heat levels rising (+20) 37815 | -2/Quarantine | Non-combat units ordered to evacuate 37819 | -2/Quarantine | Found Sigix Corpse 37825 | -2/Quarantine | Found Sigix Corpse 37836 | -2/Quarantine | Found Alien Artifact 37836 | -2/Quarantine | Identified Phase Redirector 37859 | -2/Quarantine | Found Alien Artifact 37861 | -2/Quarantine | Found Alien Artifact 37862 | -2/Quarantine | Found Alien Artifact 37867 | -2/Quarantine | Found Alien Artifact 37871 | -2/Quarantine | Identified exit to Garrison 37882 | -2/Quarantine | Found Alien Artifact 37882 | -2/Quarantine | Identified Subatomic Replicator 37892 | -2/Quarantine | Met incapacitated Sigix Warrior 37892 | -2/Quarantine | Lockdown squad dispatched 37893 | -2/Quarantine | Acquired the access code to the Sigix quarantine chamber 37897 | -2/Quarantine | Unlocked Sigix quarantine chamber 37900 | -2/Quarantine | Found Sigix Containment Pod 37917 | -2/Quarantine | Identified exit to Access 37972 | -2/Quarantine | Entered Access 37972 | -1/Access | Evolved 2 slots: Utility x2 38057 | -1/Access | Identified Hpw. Transdimensional Reconstructor 38057 | -1/Access | Warped through subspace 38112 | -1/Access | Lost 13 parts (2p3n6u2w) 38174 | -1/Access | Spotted B-99 Colossus 38175 | -1/Access | Identified Transdimensional Reconstructor 38175 | -1/Access | Warped through subspace 38176 | -1/Access | Core integrity fell below 50% 38207 | -1/Access | Core integrity fell below 20% 38217 | -1/Access | Destroyed by P-80 Master with Gamma Rifle Last Messages --------------- 38203_ Slug penetrates Wall. 38203_ Penetrated by Slug. 38203_ Slug penetrates Wall. 38203_ U-05 Engineer lays Concrete. 38205_ K-01 Serf collects debris. 38206_ Cld. Q-thruster destroyed. 38206_ Penetrated by Slug. 38206_ U-05 Engineer lays Concrete. 38206_ Slug penetrates Wall. 38207_ K-01 Serf collects debris. 38207_ Penetrated by Slug. 38207_ U-05 Engineer lays Concrete. 38208_ Penetrated by Slug. 38208_ U-05 Engineer lays Concrete. 38209_ Penetrated by Slug. 38209_ K-01 Serf collects debris. 38209_ U-05 Engineer lays Concrete. 38211_ Slug penetrates Wall. 38215_ Penetrated by Slug. 38216_ Slug penetrates Wall. Map ----- +----------------------------------------------------+ | # "" # % # | | #"" "" # # | | #"" """" # # | | #"" """" ?######### # | | #T """"?????????## " ########### | | #"" """"?????????# % """ | | #"" """"?????????# """ | | #"" "" ???????#### " | | # ???????+ | | # ????????### | | ###########??????????# | | ?????????????????????# | | ?????????????????????# ###+#############+### | | ?????????????????????# # ##????????? | | ?????????????????????# # ##????????? | | ?????????????????????# # "" ##????????? | | ?????????????????????# # "" ##????????? | | #### ????? # # "" ##????????? | | ##########??##########k # S ##????????? | | # ? # "" ##????????? | | # p # "" ##????????? | | # A # "" ##????????? | | # ; ##????????? | | # # ##????????? | | # R # ##????????? | | # @ # ##????????? | | ##?#######+########### ##????????? | | ##?## ##?## ##????????? | | ##?## ##?## ##????????? | | ##?## ##?###/################## | | ##### ##?### ################## | | ##### "" ##??## | | #### = "" ##??######## ###### | | # ## """""" ############ ###### | | # # """""" ############ ##???? | | = # "" # ## ##???? | | # "" # ## ##???? | | # # " ## ##???? | | [ # # """ ## ##???? | | ##########+### """ ## ##???? | | #* ########## ### " ## ##???? | | #/ ###?????## + ## ###### | | ### #####?########### ## ###### | | #############?##############/####### | | ?? ????## | | ???????????????##] | | ???????????????## !% | | ???????????????## """ | | ???????????????## """ | | ???????????????## "" ###### | +----------------------------------------------------+ Best States ------------- Heat Dissipation 102 Coolant Potential 100 Energy Generation 45 Energy Capacity 940 Matter Stores 300 Matter Capacity 300 Sight Range 24 Robot Scan Range 16 Terrain Scan Range 24 Terrain Scan Density 10 Cloak Strength 2 Additional Mass Support 12 Armor Coverage 1600 Resistance: KI 20 Resistance: TH 30 Resistance: EM 90 Phase Shifting 10 Evasion (%) 75 Targeting Accuracy 8 Melee Accuracy 16 Launcher Accuracy 40 Target Analysis 5 Core Analysis 6 Armor Integrity Analysis 30 Recoil Reduction 4 Offensive Hacking 36 Relay Coupler Types 6 Relay Coupler Value 167 Authchip Count 5 Item Schematics ----------------- Enh. Autogun | -8/Materials | Scanalyzed Matter Neutralizer | -6/Extension | Hacked Imp. Component Analysis Suite | -6/Extension | Hacked Robot Schematics ------------------ Y-45 Defender | -7/Factory | Downloaded A-15 Conveyor | -6/Factory | Downloaded M-28 Smith | -6/Factory | Hacked Fabricated ------------ G-50 Soldier | x3 | -5/Factory | Preloaded Repaired ---------- Adv. Heavy Siege Treads | 18% | -4/Factory Studied --------- Lgt. Treads | -9/Materials | Hacked Imp. Treads | -8/Materials | Hacked Adv. Treads | -8/Materials | Hacked Arm. Treads | -8/Materials | Hacked Minigun | -8/Materials | Hacked Imp. Heavy Treads | -4/Factory | Hacked Imp. Remote Datajack | -4/Factory | Hacked Nuclear Pulse Array | -2/Research | Hacked Impulse Thruster Array | -2/Research | Hacked Enh. Force Lance | -2/Research | Hacked Lgt. Antimatter Reactor | -2/Research | Hacked Micro-nuke Launcher | -2/Research | Hacked Hvy. Disruptor Cannon | -2/Research | Hacked Adv. Remote Datajack | -1/Access | Hacked Alien Tech Used ----------------- Phase Redirector Subatomic Replicator High-powered Transdimensional Reconstructor Transdimensional Reconstructor Achievements -------------- Pwned RIFT Wizard Tank Life The Better Part Of Valor Challenges ------------ None Game ------ Seed RainbowWarpPendant Manual? 0 Play Time 05:41:46 Cumulative 460.5 hours Start 2025.11.01 @ 11:27:40 End 2025.11.02 @ 10:50:53 Sessions 34 Manual Loads 0 Difficulty Rogue Special Mode None Game No. 578 Rogue 578 Adventurer 0 Explorer 0 Win Type - Total 14 Types 6/0/2/2/1/0/2/1/0/0 Lore% 90 Gallery% 85 Achievement% 62 Wizard Run 0 Options --------- Layout 0 ASCII 0 Keyboard 0 Movement Mouse Keybinds 0 Fullscreen 1 Font 24/Terminus Map View 76x50 Zoom Use 0% Tactical HUD 1 Map Filters NONE Filters NONE Steam 1 RUN: 6e9181dc-1df9-474b-bea2-3678f715bd27